OrganisationNameLabel,OrganisationURI,EffectiveDate,Directorate/ServiceWhereExpenditureIncurred,ServiceCategoryLabel,ServiceCategoryURI,Supplier,SupplierRegisteredCompany Number,PaymentDate,TransactionNumber,NetAmount,IrrecoverableVAT,PurposeOfSpend,ProcurementClassification:ProclassLabel,ProcrementClassification:ProClassCode
South Lakeland District Council,http://opendatacommunities.org/id/district-council/south-lakeland,01/07/2019,Democratic Services,Central Services,http://opendatacommunities.org/def/concept/finance/sercop/objective/102,7 Harrington Street Chambers,,12/06/2019,87133,1833.33,0,Professional Fees ,281300,Legal Services Legal Opinion
South Lakeland District Council,http://opendatacommunities.org/id/district-council/south-lakeland,01/07/2019,Democratic Services,Central Services,http://opendatacommunities.org/def/concept/finance/sercop/objective/102,7 Harrington Street Chambers,,12/06/2019,87134,1562.5,0,Professional Fees ,281300,Legal Services Legal Opinion
South Lakeland District Council,http://opendatacommunities.org/id/district-council/south-lakeland,01/07/2019,Business Support Community Services,Cultural Environmental Regulatory & Planning Services,http://opendatacommunities.org/def/concept/finance/sercop/objective/104,A & W COMMERCIALS LTD,2630625,17/06/2019,87215,232.83,0,Tail lift test,381400,Vehicle Mgt Maintenance
South Lakeland District Council,http://opendatacommunities.org/id/district-council/south-lakeland,01/07/2019,Environment and Housing,Housing Services,http://opendatacommunities.org/def/concept/finance/sercop/objective/108,ADECCO UK LIMITED,593232,05/06/2019,86471,473.57,0,PH - agency work,261400,HR Temporary & Agency Staff
South Lakeland District Council,http://opendatacommunities.org/id/district-council/south-lakeland,01/07/2019,Environment and Housing,Housing Services,http://opendatacommunities.org/def/concept/finance/sercop/objective/108,ADECCO UK LIMITED,593232,05/06/2019,86714,575.63,0,P H - agency work,261400,HR Temporary & Agency Staff
South Lakeland District Council,http://opendatacommunities.org/id/district-council/south-lakeland,01/07/2019,Human Resources,Central Services,http://opendatacommunities.org/def/concept/finance/sercop/objective/102,ADECCO UK LIMITED,593232,05/06/2019,86823,866.88,0,JM agency,261400,HR Temporary & Agency Staff
South Lakeland District Council,http://opendatacommunities.org/id/district-council/south-lakeland,01/07/2019,Environment and Housing,Housing Services,http://opendatacommunities.org/def/concept/finance/sercop/objective/108,ADECCO UK LIMITED,593232,03/06/2019,86825,436.83,0,PH - agency work,261400,HR Temporary & Agency Staff
South Lakeland District Council,http://opendatacommunities.org/id/district-council/south-lakeland,01/07/2019,Policy & Partnerships,Central Services,http://opendatacommunities.org/def/concept/finance/sercop/objective/102,ADECCO UK LIMITED,593232,03/06/2019,86826,469.64,0,Programme administrative resource costs,261400,HR Temporary & Agency Staff
South Lakeland District Council,http://opendatacommunities.org/id/district-council/south-lakeland,01/07/2019,Human Resources,Central Services,http://opendatacommunities.org/def/concept/finance/sercop/objective/102,ADECCO UK LIMITED,593232,05/06/2019,86828,873.76,0,JM Agency,261400,HR Temporary & Agency Staff
South Lakeland District Council,http://opendatacommunities.org/id/district-council/south-lakeland,01/07/2019,Development Implementation,Central Services,http://opendatacommunities.org/def/concept/finance/sercop/objective/102,ADECCO UK LIMITED,593232,05/06/2019,86829,291,0,Cleaner for SLDC - April 2019 Onwards,261400,HR Temporary & Agency Staff
South Lakeland District Council,http://opendatacommunities.org/id/district-council/south-lakeland,01/07/2019,Development Implementation,Central Services,http://opendatacommunities.org/def/concept/finance/sercop/objective/102,ADECCO UK LIMITED,593232,05/06/2019,86830,232.8,0,Cleaner for SLDC - April 2019 Onwards,261400,HR Temporary & Agency Staff
South Lakeland District Council,http://opendatacommunities.org/id/district-council/south-lakeland,01/07/2019,Business Support Community Services,Central Services,http://opendatacommunities.org/def/concept/finance/sercop/objective/102,ADECCO UK LIMITED,593232,05/06/2019,86831,553.6,0,PAI Technician from 20/11/2017,261400,HR Temporary & Agency Staff
South Lakeland District Council,http://opendatacommunities.org/id/district-council/south-lakeland,01/07/2019,Development Implementation,Central Services,http://opendatacommunities.org/def/concept/finance/sercop/objective/102,ADECCO UK LIMITED,593232,12/06/2019,87022,232.8,0,Cleaner for SLDC - April 2019 Onwards,261400,HR Temporary & Agency Staff
South Lakeland District Council,http://opendatacommunities.org/id/district-council/south-lakeland,01/07/2019,Westmorland Centre Parking Office,Highways & Transport Services,http://opendatacommunities.org/def/concept/finance/sercop/objective/107,ADECCO UK LIMITED,593232,12/06/2019,87023,614.59,0,Agency cover for Parking Attendant at,261400,HR Temporary & Agency Staff
South Lakeland District Council,http://opendatacommunities.org/id/district-council/south-lakeland,01/07/2019,Policy & Partnerships,Central Services,http://opendatacommunities.org/def/concept/finance/sercop/objective/102,ADECCO UK LIMITED,593232,12/06/2019,87024,350.24,0,Programme administrative resource costs,261400,HR Temporary & Agency Staff
South Lakeland District Council,http://opendatacommunities.org/id/district-council/south-lakeland,01/07/2019,Business Support Community Services,Central Services,http://opendatacommunities.org/def/concept/finance/sercop/objective/102,ADECCO UK LIMITED,593232,12/06/2019,87025,557.93,0,PAI Technician from 20/11/2017,261400,HR Temporary & Agency Staff
South Lakeland District Council,http://opendatacommunities.org/id/district-council/south-lakeland,01/07/2019,Human Resources,Central Services,http://opendatacommunities.org/def/concept/finance/sercop/objective/102,ADECCO UK LIMITED,593232,12/06/2019,87026,825.6,0,JM Agency,261400,HR Temporary & Agency Staff
South Lakeland District Council,http://opendatacommunities.org/id/district-council/south-lakeland,01/07/2019,Westmorland Centre Parking Office,Highways & Transport Services,http://opendatacommunities.org/def/concept/finance/sercop/objective/107,ADECCO UK LIMITED,593232,12/06/2019,87027,179.88,0,Marshals for Braithwaite Fold car park,261400,HR Temporary & Agency Staff
South Lakeland District Council,http://opendatacommunities.org/id/district-council/south-lakeland,01/07/2019,Westmorland Centre Parking Office,Highways & Transport Services,http://opendatacommunities.org/def/concept/finance/sercop/objective/107,ADECCO UK LIMITED,593232,12/06/2019,87028,179.88,0,Marshals for Braithwaite Fold car park,261400,HR Temporary & Agency Staff
South Lakeland District Council,http://opendatacommunities.org/id/district-council/south-lakeland,01/07/2019,Environment and Housing,Housing Services,http://opendatacommunities.org/def/concept/finance/sercop/objective/108,ADECCO UK LIMITED,593232,12/06/2019,87029,498.07,0,PH - agency work,261400,HR Temporary & Agency Staff
South Lakeland District Council,http://opendatacommunities.org/id/district-council/south-lakeland,01/07/2019,Westmorland Centre Parking Office,Highways & Transport Services,http://opendatacommunities.org/def/concept/finance/sercop/objective/107,ADECCO UK LIMITED,593232,12/06/2019,87030,179.88,0,Marshals for Braithwaite Fold car park,261400,HR Temporary & Agency Staff
South Lakeland District Council,http://opendatacommunities.org/id/district-council/south-lakeland,01/07/2019,Business Support Community Services,Central Services,http://opendatacommunities.org/def/concept/finance/sercop/objective/102,ADECCO UK LIMITED,593232,24/06/2019,87364,544.95,0,PAI Technician from 20/11/2017,261400,HR Temporary & Agency Staff
South Lakeland District Council,http://opendatacommunities.org/id/district-council/south-lakeland,01/07/2019,Development Implementation,Central Services,http://opendatacommunities.org/def/concept/finance/sercop/objective/102,ADECCO UK LIMITED,593232,26/06/2019,87366,291,0,Cleaner for SLDC - April 2019 Onwards,261400,HR Temporary & Agency Staff
South Lakeland District Council,http://opendatacommunities.org/id/district-council/south-lakeland,01/07/2019,Human Resources,Central Services,http://opendatacommunities.org/def/concept/finance/sercop/objective/102,ADECCO UK LIMITED,593232,26/06/2019,87367,825.6,0,JM Agency,261400,HR Temporary & Agency Staff
South Lakeland District Council,http://opendatacommunities.org/id/district-council/south-lakeland,01/07/2019,Environment and Housing,Housing Services,http://opendatacommunities.org/def/concept/finance/sercop/objective/108,ADECCO UK LIMITED,593232,26/06/2019,87368,542.97,0,PH - agency work,261400,HR Temporary & Agency Staff
South Lakeland District Council,http://opendatacommunities.org/id/district-council/south-lakeland,01/07/2019,Development Implementation,Cultural Environmental Regulatory & Planning Services,http://opendatacommunities.org/def/concept/finance/sercop/objective/104,AHA! DISTRIBUTION LTD,,19/06/2019,87294,115.5,0,Distribution of Whats On Guides,191000,Facilities Advertising
South Lakeland District Council,http://opendatacommunities.org/id/district-council/south-lakeland,01/07/2019,Business Support Community Services,Cultural Environmental Regulatory & Planning Services,http://opendatacommunities.org/def/concept/finance/sercop/objective/104,AINSWORTH'S GARAGE,,05/06/2019,86895,80,0,Repairs,381400,Vehicle Mgt Maintenance
South Lakeland District Council,http://opendatacommunities.org/id/district-council/south-lakeland,01/07/2019,Business Support Community Services,Cultural Environmental Regulatory & Planning Services,http://opendatacommunities.org/def/concept/finance/sercop/objective/104,AINSWORTH'S GARAGE,,05/06/2019,86896,30,0,Repairs,381400,Vehicle Mgt Maintenance
South Lakeland District Council,http://opendatacommunities.org/id/district-council/south-lakeland,01/07/2019,Business Support Community Services,Cultural Environmental Regulatory & Planning Services,http://opendatacommunities.org/def/concept/finance/sercop/objective/104,AINSWORTH'S GARAGE,,17/06/2019,87202,30,0,Repairs,381400,Vehicle Mgt Maintenance
South Lakeland District Council,http://opendatacommunities.org/id/district-council/south-lakeland,01/07/2019,Business Support Community Services,Cultural Environmental Regulatory & Planning Services,http://opendatacommunities.org/def/concept/finance/sercop/objective/104,AINSWORTH'S GARAGE,,26/06/2019,87485,425,0,Repairs,381400,Vehicle Mgt Maintenance
South Lakeland District Council,http://opendatacommunities.org/id/district-council/south-lakeland,01/07/2019,Business Support Community Services,Cultural Environmental Regulatory & Planning Services,http://opendatacommunities.org/def/concept/finance/sercop/objective/104,AINSWORTH'S GARAGE,,26/06/2019,87486,30,0,Repairs,381400,Vehicle Mgt Maintenance
South Lakeland District Council,http://opendatacommunities.org/id/district-council/south-lakeland,01/07/2019,Business Support Community Services,Cultural Environmental Regulatory & Planning Services,http://opendatacommunities.org/def/concept/finance/sercop/objective/104,ALAN MYERSCOUGH LTD,2027076,26/06/2019,87484,250,0,Repair SL075,381400,Vehicle Mgt Maintenance
South Lakeland District Council,http://opendatacommunities.org/id/district-council/south-lakeland,01/07/2019,Kendal Town Hall,Cultural Environmental Regulatory & Planning Services,http://opendatacommunities.org/def/concept/finance/sercop/objective/104,ALEXANDRA PLC,,17/06/2019,87148,29.7,0,UTAH,141300,Clothing Uniforms
South Lakeland District Council,http://opendatacommunities.org/id/district-council/south-lakeland,01/07/2019,Revenues and Benefits,Central Services,http://opendatacommunities.org/def/concept/finance/sercop/objective/102,ALLPAY.NET LTD (NCR),6871069,01/06/2019,87124,310.15,0,2019-20 Internet Payment / bank charges,209999,Financial Services Not Elsewhere Classif
South Lakeland District Council,http://opendatacommunities.org/id/district-council/south-lakeland,01/07/2019,Revenues and Benefits,Central Services,http://opendatacommunities.org/def/concept/finance/sercop/objective/102,ALLPAY.NET LTD (NCR),6871069,01/06/2019,87125,14.65,0,2019-20 Internet Payment / bank charges,209999,Financial Services Not Elsewhere Classif
South Lakeland District Council,http://opendatacommunities.org/id/district-council/south-lakeland,01/07/2019,Revenues and Benefits,Central Services,http://opendatacommunities.org/def/concept/finance/sercop/objective/102,ALLPAY.NET LTD (NCR),6871069,01/06/2019,87126,901.04,0,2019-20 Internet Payment / bank charges,209999,Financial Services Not Elsewhere Classif
South Lakeland District Council,http://opendatacommunities.org/id/district-council/south-lakeland,01/07/2019,Revenues and Benefits,Central Services,http://opendatacommunities.org/def/concept/finance/sercop/objective/102,ALLPAY.NET LTD (NCR),6871069,01/06/2019,87127,19.51,0,2019-20 Internet Payment / bank charges,209999,Financial Services Not Elsewhere Classif
South Lakeland District Council,http://opendatacommunities.org/id/district-council/south-lakeland,01/07/2019,Revenues and Benefits,Central Services,http://opendatacommunities.org/def/concept/finance/sercop/objective/102,ALLPAY.NET LTD (NCR),6871069,01/06/2019,87128,16.64,0,2019-20 Internet Payment / bank charges,209999,Financial Services Not Elsewhere Classif
South Lakeland District Council,http://opendatacommunities.org/id/district-council/south-lakeland,01/07/2019,Revenues and Benefits,Central Services,http://opendatacommunities.org/def/concept/finance/sercop/objective/102,ALLPAY.NET LTD (NCR),6871069,01/06/2019,87129,12.08,0,2019-20 Internet Payment / bank charges,209999,Financial Services Not Elsewhere Classif
South Lakeland District Council,http://opendatacommunities.org/id/district-council/south-lakeland,01/07/2019,Revenues and Benefits,Central Services,http://opendatacommunities.org/def/concept/finance/sercop/objective/102,ALLPAY.NET LTD (NCR),6871069,01/06/2019,87130,10.6,0,2019-20 Internet Payment / bank charges,209999,Financial Services Not Elsewhere Classif
South Lakeland District Council,http://opendatacommunities.org/id/district-council/south-lakeland,01/07/2019,Revenues and Benefits,Central Services,http://opendatacommunities.org/def/concept/finance/sercop/objective/102,ALLPAY.NET LTD (NCR),6871069,01/06/2019,87131,22.21,0,2019-20 Internet Payment / bank charges,209999,Financial Services Not Elsewhere Classif
South Lakeland District Council,http://opendatacommunities.org/id/district-council/south-lakeland,01/07/2019,Leisure and Wellbeing,Cultural Environmental Regulatory & Planning Services,http://opendatacommunities.org/def/concept/finance/sercop/objective/104,ALLSTAR BUSINESS SOLUTIONS LTD (NCR),2631112,01/06/2019,86902,78.07,0,Parks fuel for April 2019 - March 2020,381600,Vehicle Mgt Leasing
South Lakeland District Council,http://opendatacommunities.org/id/district-council/south-lakeland,01/07/2019,Social Enterprise Admin,Highways & Transport Services,http://opendatacommunities.org/def/concept/finance/sercop/objective/107,ALLSTAR BUSINESS SOLUTIONS LTD (NCR),2631112,01/06/2019,86903,267.09,0,Fuel for Parking Enforcement 2019-20,381600,Vehicle Mgt Leasing
South Lakeland District Council,http://opendatacommunities.org/id/district-council/south-lakeland,01/07/2019,Business Support Community Services,Cultural Environmental Regulatory & Planning Services,http://opendatacommunities.org/def/concept/finance/sercop/objective/104,ALLSTAR BUSINESS SOLUTIONS LTD (NCR),2631112,01/06/2019,86916,75.79,0,Fuel - Private Water Van,381600,Vehicle Mgt Leasing
South Lakeland District Council,http://opendatacommunities.org/id/district-council/south-lakeland,01/07/2019,Business Support Community Services,Cultural Environmental Regulatory & Planning Services,http://opendatacommunities.org/def/concept/finance/sercop/objective/104,ALLSTAR BUSINESS SOLUTIONS LTD (NCR),2631112,01/06/2019,87313,6171.14,0,Fuel to 31/05,381600,Vehicle Mgt Leasing
South Lakeland District Council,http://opendatacommunities.org/id/district-council/south-lakeland,01/07/2019,Business Support Community Services,Cultural Environmental Regulatory & Planning Services,http://opendatacommunities.org/def/concept/finance/sercop/objective/104,ALLSTAR BUSINESS SOLUTIONS LTD (NCR),2631112,01/06/2019,87313,66.05,0,Fuel to 31/05,381600,Vehicle Mgt Leasing
South Lakeland District Council,http://opendatacommunities.org/id/district-council/south-lakeland,01/07/2019,Business Support Community Services,Cultural Environmental Regulatory & Planning Services,http://opendatacommunities.org/def/concept/finance/sercop/objective/104,ALLSTAR BUSINESS SOLUTIONS LTD (NCR),2631112,01/06/2019,87313,16147.36,0,Fuel to 31/05,381600,Vehicle Mgt Leasing
South Lakeland District Council,http://opendatacommunities.org/id/district-council/south-lakeland,01/07/2019,Printing Section,Central Services,http://opendatacommunities.org/def/concept/finance/sercop/objective/102,ALPHATEC P.F.E,5419826,24/06/2019,87399,393.28,0,Brake part for quillotine,271400,ICT Office & Reprographics Equipment
South Lakeland District Council,http://opendatacommunities.org/id/district-council/south-lakeland,01/07/2019,Democratic Services,Central Services,http://opendatacommunities.org/def/concept/finance/sercop/objective/102,ANTHONY COLLINS SOLICITORS,OC313432,12/06/2019,87136,1165.8,0,"""insurance re-tender ESPO Framework ZM""",281300,Legal Services Legal Opinion
South Lakeland District Council,http://opendatacommunities.org/id/district-council/south-lakeland,01/07/2019,Democratic Services,Central Services,http://opendatacommunities.org/def/concept/finance/sercop/objective/102,ANTHONY COLLINS SOLICITORS,OC313432,12/06/2019,87137,650,0,LEASE 0022,281300,Legal Services Legal Opinion
South Lakeland District Council,http://opendatacommunities.org/id/district-council/south-lakeland,01/07/2019,Business Support Community Services,Cultural Environmental Regulatory & Planning Services,http://opendatacommunities.org/def/concept/finance/sercop/objective/104,APSE,6735100,10/06/2019,87013,175,0,APSE Transport Seminar,202100,Financial Services Subscriptions
South Lakeland District Council,http://opendatacommunities.org/id/district-council/south-lakeland,01/07/2019,Business Support Community Services,Cultural Environmental Regulatory & Planning Services,http://opendatacommunities.org/def/concept/finance/sercop/objective/104,APSE,6735100,10/06/2019,87013,175,0,APSE Transport Seminar,202100,Financial Services Subscriptions
South Lakeland District Council,http://opendatacommunities.org/id/district-council/south-lakeland,01/07/2019,Business Support Community Services,Transport Planning Policy,http://opendatacommunities.org/def/concept/finance/sercop/objective/107,ARCO LIMITED,133804,10/06/2019,87005,9.55,0,Cleaning materials,141100,Clothing Protective
South Lakeland District Council,http://opendatacommunities.org/id/district-council/south-lakeland,01/07/2019,Business Support Community Services,Cultural Environmental Regulatory & Planning Services,http://opendatacommunities.org/def/concept/finance/sercop/objective/104,ARCO LIMITED,133804,10/06/2019,87005,14.15,0,Cleaning materials,141100,Clothing Protective
South Lakeland District Council,http://opendatacommunities.org/id/district-council/south-lakeland,01/07/2019,Business Support Community Services,Transport Planning Policy,http://opendatacommunities.org/def/concept/finance/sercop/objective/107,ARCO LIMITED,133804,10/06/2019,87006,43.44,0,Cleaning materials,141100,Clothing Protective
South Lakeland District Council,http://opendatacommunities.org/id/district-council/south-lakeland,01/07/2019,Business Support Community Services,Cultural Environmental Regulatory & Planning Services,http://opendatacommunities.org/def/concept/finance/sercop/objective/104,ARCO LIMITED,133804,10/06/2019,87006,280.92,0,Cleaning materials,141100,Clothing Protective
South Lakeland District Council,http://opendatacommunities.org/id/district-council/south-lakeland,01/07/2019,Business Support Community Services,Cultural Environmental Regulatory & Planning Services,http://opendatacommunities.org/def/concept/finance/sercop/objective/104,ARCO LIMITED,133804,10/06/2019,87006,185.44,0,Cleaning materials,141100,Clothing Protective
South Lakeland District Council,http://opendatacommunities.org/id/district-council/south-lakeland,01/07/2019,Business Support Community Services,Cultural Environmental Regulatory & Planning Services,http://opendatacommunities.org/def/concept/finance/sercop/objective/104,ARCO LIMITED,133804,10/06/2019,87011,174,0,Cleaning materials,141100,Clothing Protective
South Lakeland District Council,http://opendatacommunities.org/id/district-council/south-lakeland,01/07/2019,Business Support Community Services,Transport Planning Policy,http://opendatacommunities.org/def/concept/finance/sercop/objective/107,ARCO LIMITED,133804,17/06/2019,87162,10.39,0,Cleaning materials,141100,Clothing Protective
South Lakeland District Council,http://opendatacommunities.org/id/district-council/south-lakeland,01/07/2019,Business Support Community Services,Cultural Environmental Regulatory & Planning Services,http://opendatacommunities.org/def/concept/finance/sercop/objective/104,ARCO LIMITED,133804,17/06/2019,87188,50.25,0,Cleaning materials,141100,Clothing Protective
South Lakeland District Council,http://opendatacommunities.org/id/district-council/south-lakeland,01/07/2019,Business Support Community Services,Transport Planning Policy,http://opendatacommunities.org/def/concept/finance/sercop/objective/107,ARCO LIMITED,133804,17/06/2019,87219,13.52,0,Cleaning materials,141100,Clothing Protective
South Lakeland District Council,http://opendatacommunities.org/id/district-council/south-lakeland,01/07/2019,Business Support Community Services,Cultural Environmental Regulatory & Planning Services,http://opendatacommunities.org/def/concept/finance/sercop/objective/104,ARCO LIMITED,133804,17/06/2019,87219,13.9,0,Cleaning materials,141100,Clothing Protective
South Lakeland District Council,http://opendatacommunities.org/id/district-council/south-lakeland,01/07/2019,Business Support Community Services,Cultural Environmental Regulatory & Planning Services,http://opendatacommunities.org/def/concept/finance/sercop/objective/104,ARCO LIMITED,133804,17/06/2019,87219,243.49,0,Cleaning materials,141100,Clothing Protective
South Lakeland District Council,http://opendatacommunities.org/id/district-council/south-lakeland,01/07/2019,Business Support Community Services,Cultural Environmental Regulatory & Planning Services,http://opendatacommunities.org/def/concept/finance/sercop/objective/104,ARCO LIMITED,133804,19/06/2019,87262,40.32,0,Cleaning materials,141100,Clothing Protective
South Lakeland District Council,http://opendatacommunities.org/id/district-council/south-lakeland,01/07/2019,Business Support Community Services,Cultural Environmental Regulatory & Planning Services,http://opendatacommunities.org/def/concept/finance/sercop/objective/104,ARCO LIMITED,133804,19/06/2019,87263,40.2,0,Cleaning materials,141100,Clothing Protective
South Lakeland District Council,http://opendatacommunities.org/id/district-council/south-lakeland,01/07/2019,Business Support Community Services,Cultural Environmental Regulatory & Planning Services,http://opendatacommunities.org/def/concept/finance/sercop/objective/104,ARCO LIMITED,133804,19/06/2019,87264,26.67,0,Cleaning materials,141100,Clothing Protective
South Lakeland District Council,http://opendatacommunities.org/id/district-council/south-lakeland,01/07/2019,Business Support Community Services,Cultural Environmental Regulatory & Planning Services,http://opendatacommunities.org/def/concept/finance/sercop/objective/104,ARCO LIMITED,133804,24/06/2019,87390,458.5,0,Welding PPE,141100,Clothing Protective
South Lakeland District Council,http://opendatacommunities.org/id/district-council/south-lakeland,01/07/2019,Business Support Community Services,Cultural Environmental Regulatory & Planning Services,http://opendatacommunities.org/def/concept/finance/sercop/objective/104,ARCO LIMITED,133804,24/06/2019,87390,2155.17,0,Welding PPE,141100,Clothing Protective
South Lakeland District Council,http://opendatacommunities.org/id/district-council/south-lakeland,01/07/2019,Business Support Community Services,Transport Planning Policy,http://opendatacommunities.org/def/concept/finance/sercop/objective/107,ARCO LIMITED,133804,24/06/2019,87434,43.05,0,Cleaning materials,141100,Clothing Protective
South Lakeland District Council,http://opendatacommunities.org/id/district-council/south-lakeland,01/07/2019,Business Support Community Services,Cultural Environmental Regulatory & Planning Services,http://opendatacommunities.org/def/concept/finance/sercop/objective/104,ARCO LIMITED,133804,24/06/2019,87434,7.92,0,Cleaning materials,141100,Clothing Protective
South Lakeland District Council,http://opendatacommunities.org/id/district-council/south-lakeland,01/07/2019,Business Support Community Services,Cultural Environmental Regulatory & Planning Services,http://opendatacommunities.org/def/concept/finance/sercop/objective/104,ARCO LIMITED,133804,24/06/2019,87434,342.32,0,Cleaning materials,141100,Clothing Protective
South Lakeland District Council,http://opendatacommunities.org/id/district-council/south-lakeland,01/07/2019,Business Support Community Services,Transport Planning Policy,http://opendatacommunities.org/def/concept/finance/sercop/objective/107,ARCO LIMITED,133804,24/06/2019,87435,8.91,0,Cleaning materials,141100,Clothing Protective
South Lakeland District Council,http://opendatacommunities.org/id/district-council/south-lakeland,01/07/2019,Business Support Community Services,Cultural Environmental Regulatory & Planning Services,http://opendatacommunities.org/def/concept/finance/sercop/objective/104,ARCO LIMITED,133804,26/06/2019,87490,155.99,0,Cases,141100,Clothing Protective
South Lakeland District Council,http://opendatacommunities.org/id/district-council/south-lakeland,01/07/2019,Business Support Community Services,Housing Services,http://opendatacommunities.org/def/concept/finance/sercop/objective/108,Ashberry Recruitment,7202591,10/06/2019,86730,216.76,0,Agency staff at Town View Fields,261300,HR Recruitment & Assessment
South Lakeland District Council,http://opendatacommunities.org/id/district-council/south-lakeland,01/07/2019,Business Support Community Services,Housing Services,http://opendatacommunities.org/def/concept/finance/sercop/objective/108,Ashberry Recruitment,7202591,24/06/2019,87248,214.06,0,Agency staff at Town View Fields,261300,HR Recruitment & Assessment
South Lakeland District Council,http://opendatacommunities.org/id/district-council/south-lakeland,01/07/2019,Business Support Community Services,Housing Services,http://opendatacommunities.org/def/concept/finance/sercop/objective/108,LANDLORD,8672920,19/06/2019,87320,400,0,Monthly rent ,202000,Financial Services Rents
South Lakeland District Council,http://opendatacommunities.org/id/district-council/south-lakeland,01/07/2019,Electoral Services,Central Services,http://opendatacommunities.org/def/concept/finance/sercop/objective/102,ASSOCIATION OF ELECTORAL ADMINISTRATORS,2406897,19/06/2019,87291,330,0,Course for SM,202100,Financial Services Subscriptions
South Lakeland District Council,http://opendatacommunities.org/id/district-council/south-lakeland,01/07/2019,Lake Wardens,Cultural Environmental Regulatory & Planning Services,http://opendatacommunities.org/def/concept/finance/sercop/objective/104,AUTOPARTS (CUMBRIA) LTD,2579204,10/06/2019,86951,9.97,0,1 x Fleetguard Filter - Ref: LF4016,381500,Vehicle Mgt Parts
South Lakeland District Council,http://opendatacommunities.org/id/district-council/south-lakeland,01/07/2019,Social Enterprise Admin,Highways & Transport Services,http://opendatacommunities.org/def/concept/finance/sercop/objective/107,BEMROSE BOOTH PARAGON LTD,4891375,26/06/2019,87165,1490,0,250000 Aura self adhesive Pay and,191600,Facilities Printing
South Lakeland District Council,http://opendatacommunities.org/id/district-council/south-lakeland,01/07/2019,Social Enterprise Admin,Highways & Transport Services,http://opendatacommunities.org/def/concept/finance/sercop/objective/107,BEMROSE BOOTH PARAGON LTD,4891375,26/06/2019,87166,-843.75,0,250000 Aura self adhesive Pay and,191600,Facilities Printing
South Lakeland District Council,http://opendatacommunities.org/id/district-council/south-lakeland,01/07/2019,Social Enterprise Admin,Highways & Transport Services,http://opendatacommunities.org/def/concept/finance/sercop/objective/107,BEMROSE BOOTH PARAGON LTD,4891375,26/06/2019,87167,1128.75,0,250000 Aura self adhesive Pay and,191600,Facilities Printing
South Lakeland District Council,http://opendatacommunities.org/id/district-council/south-lakeland,01/07/2019,Social Enterprise Admin,Highways & Transport Services,http://opendatacommunities.org/def/concept/finance/sercop/objective/107,BEMROSE BOOTH PARAGON LTD,4891375,26/06/2019,87168,-1125,0,250000 Aura self adhesive Pay and,191600,Facilities Printing
South Lakeland District Council,http://opendatacommunities.org/id/district-council/south-lakeland,01/07/2019,Leisure and Wellbeing,Cultural Environmental Regulatory & Planning Services,http://opendatacommunities.org/def/concept/finance/sercop/objective/104,Bergen Arbortech,,19/06/2019,87287,685,0,"Remove ash tree at Kirkfield, Ambleside",241210,Horticultural Tree Trimming
South Lakeland District Council,http://opendatacommunities.org/id/district-council/south-lakeland,01/07/2019,Business Support Community Services,Cultural Environmental Regulatory & Planning Services,http://opendatacommunities.org/def/concept/finance/sercop/objective/104,Blackpool Trim Ltd,8665678,17/06/2019,87199,50,0,Repair seat base,381400,Vehicle Mgt Maintenance
South Lakeland District Council,http://opendatacommunities.org/id/district-council/south-lakeland,01/07/2019,Policy & Partnerships,Central Services,http://opendatacommunities.org/def/concept/finance/sercop/objective/102,Bloom Procurement Services Ltd,,05/06/2019,86796,30331.41,0,Transition Management  - Cost of,151900,Consultancy Management
South Lakeland District Council,http://opendatacommunities.org/id/district-council/south-lakeland,01/07/2019,Business Support Community Services,Cultural Environmental Regulatory & Planning Services,http://opendatacommunities.org/def/concept/finance/sercop/objective/104,BRIAN ARMISTEAD LTD T/A SINKFALL RECYCLI,4133280,10/06/2019,87002,2748.99,0,Tipping charges - green waste,391110,Construction Buildings Construction
South Lakeland District Council,http://opendatacommunities.org/id/district-council/south-lakeland,01/07/2019,Business Support Community Services,Cultural Environmental Regulatory & Planning Services,http://opendatacommunities.org/def/concept/finance/sercop/objective/104,BRIAN ARMISTEAD LTD T/A SINKFALL RECYCLI,4133280,17/06/2019,87158,1452.11,0,Tipping charges - green waste,391110,Construction Buildings Construction
South Lakeland District Council,http://opendatacommunities.org/id/district-council/south-lakeland,01/07/2019,Business Support Community Services,Cultural Environmental Regulatory & Planning Services,http://opendatacommunities.org/def/concept/finance/sercop/objective/104,BRIAN ARMISTEAD LTD T/A SINKFALL RECYCLI,4133280,24/06/2019,87272,2260.94,0,Tipping charges - green waste,391110,Construction Buildings Construction
South Lakeland District Council,http://opendatacommunities.org/id/district-council/south-lakeland,01/07/2019,Financial Services,Non-Service Payments,,BUSY BEES BENEFITS LTD,6758298,10/06/2019,86961,1080,0,CHILD CARE VOUCHERS 18/19,202100,Financial Services Subscriptions
South Lakeland District Council,http://opendatacommunities.org/id/district-council/south-lakeland,01/07/2019,Financial Services,Central Services,http://opendatacommunities.org/def/concept/finance/sercop/objective/102,BUSY BEES BENEFITS LTD,6758298,10/06/2019,86962,37.8,0,CHILD CARE VOUCHER SERVICE CHARGE 18/19,202100,Financial Services Subscriptions
South Lakeland District Council,http://opendatacommunities.org/id/district-council/south-lakeland,01/07/2019,Business Support Community Services,Cultural Environmental Regulatory & Planning Services,http://opendatacommunities.org/def/concept/finance/sercop/objective/104,C T HAYTON LTD,1212766,17/06/2019,87203,26.07,0,Hose,391200,Construction Engineering
South Lakeland District Council,http://opendatacommunities.org/id/district-council/south-lakeland,01/07/2019,Business Support Community Services,Cultural Environmental Regulatory & Planning Services,http://opendatacommunities.org/def/concept/finance/sercop/objective/104,C T HAYTON LTD,1212766,24/06/2019,87360,41.77,0,Hose,391200,Construction Engineering
South Lakeland District Council,http://opendatacommunities.org/id/district-council/south-lakeland,01/07/2019,Financial Services,Central Services,http://opendatacommunities.org/def/concept/finance/sercop/objective/102,Caboodle Technology Ltd,6784632,01/06/2019,86960,41.63,0,CHILD CARE VOUCHER SERVICE 18/19 DD,260000,HR
South Lakeland District Council,http://opendatacommunities.org/id/district-council/south-lakeland,01/07/2019,Development Implementation,SLDC as Agent,,Cactus Creative Ltd,4198363,10/06/2019,86926,720,0,Website Maintenance & Support for,191000,Facilities Advertising
South Lakeland District Council,http://opendatacommunities.org/id/district-council/south-lakeland,01/07/2019,Business Support Community Services,Cultural Environmental Regulatory & Planning Services,http://opendatacommunities.org/def/concept/finance/sercop/objective/104,CANNON HYGIENE LTD,1298292,05/06/2019,86897,2357.82,0,Clinical waste collections - 2019/20,131011,Cleaning & Janitorial Cleaning Materials
South Lakeland District Council,http://opendatacommunities.org/id/district-council/south-lakeland,01/07/2019,Business Support Community Services,Cultural Environmental Regulatory & Planning Services,http://opendatacommunities.org/def/concept/finance/sercop/objective/104,CANNON HYGIENE LTD,1298292,10/06/2019,87010,569.87,0,Clinical waste collections - 2019/20,131011,Cleaning & Janitorial Cleaning Materials
South Lakeland District Council,http://opendatacommunities.org/id/district-council/south-lakeland,01/07/2019,Business Support Community Services,Cultural Environmental Regulatory & Planning Services,http://opendatacommunities.org/def/concept/finance/sercop/objective/104,CANNON HYGIENE LTD,1298292,24/06/2019,87387,22.1,0,Clinical waste collections - 2019/20,131011,Cleaning & Janitorial Cleaning Materials
South Lakeland District Council,http://opendatacommunities.org/id/district-council/south-lakeland,01/07/2019,Revenues and Benefits,Central Services,http://opendatacommunities.org/def/concept/finance/sercop/objective/102,CAPITA BUSINESS SERVICES LTD,2299747,26/06/2019,87323,1600,0,Quotation - 14594 (Payment Correction,261500,HR Training & Conferences
South Lakeland District Council,http://opendatacommunities.org/id/district-council/south-lakeland,01/07/2019,Revenues and Benefits,Highways & Transport Services,http://opendatacommunities.org/def/concept/finance/sercop/objective/107,CAPITA BUSINESS SERVICES LTD (NCR),,01/06/2019,87426,777.73,0,2019 - 20 Internet Payment / bank,261500,HR Training & Conferences
South Lakeland District Council,http://opendatacommunities.org/id/district-council/south-lakeland,01/07/2019,Revenues and Benefits,Central Services,http://opendatacommunities.org/def/concept/finance/sercop/objective/102,CAPITA BUSINESS SERVICES LTD (NCR),,01/06/2019,87426,3558.02,0,2019 - 20 Internet Payment / bank,261500,HR Training & Conferences
South Lakeland District Council,http://opendatacommunities.org/id/district-council/south-lakeland,01/07/2019,Westmorland Centre Parking Office,Highways & Transport Services,http://opendatacommunities.org/def/concept/finance/sercop/objective/107,CAPITA BUSINESS SERVICES LTD (NCR),,01/06/2019,87430,2548.28,0,Credit card commission April 2019 to,261500,HR Training & Conferences
South Lakeland District Council,http://opendatacommunities.org/id/district-council/south-lakeland,01/07/2019,Business Support Community Services,Housing Services,http://opendatacommunities.org/def/concept/finance/sercop/objective/108,CARLISLE CITY COUNCIL,,24/06/2019,87344,6000,0,Rough Sleeper Initiative Contribution,908000,Public Bodies Council support services
South Lakeland District Council,http://opendatacommunities.org/id/district-council/south-lakeland,01/07/2019,Human Resources,Central Services,http://opendatacommunities.org/def/concept/finance/sercop/objective/102,Choose Occupational Health,7365943,24/06/2019,87355,2064,0,Occupational Health Drop-ins,191800,Facilities Public Relations & Image
South Lakeland District Council,http://opendatacommunities.org/id/district-council/south-lakeland,01/07/2019,Development Implementation,Transport,http://opendatacommunities.org/def/concept/finance/sercop/objective/107,COLIN BRISCOE CONSTRUCTION LTD,2884282,10/06/2019,86927,142380.18,0,SL House Car Park Works,191700,Facilities Property Management
South Lakeland District Council,http://opendatacommunities.org/id/district-council/south-lakeland,01/07/2019,Business Support Community Services,Cultural Environmental Regulatory & Planning Services,http://opendatacommunities.org/def/concept/finance/sercop/objective/104,COMPASS COMPONENTS,,24/06/2019,87386,188.25,0,Consumables 2019/20,101400,Building General Materials
South Lakeland District Council,http://opendatacommunities.org/id/district-council/south-lakeland,01/07/2019,Financial Services,Non-Service Payments,,COMPUTERSHARE VOUCHER SERVICES LTD,4968447,10/06/2019,87032,782.93,0,CHILD CARE VOUCHERS 18/19,202100,Financial Services Subscriptions
South Lakeland District Council,http://opendatacommunities.org/id/district-council/south-lakeland,01/07/2019,Business Support Community Services,Central Services,http://opendatacommunities.org/def/concept/finance/sercop/objective/102,CRAEMER UK LTD,2574815,24/06/2019,87431,11856,0, 280 grey bins and 560 green bins to,182012,Environment Waste Management Recycling
South Lakeland District Council,http://opendatacommunities.org/id/district-council/south-lakeland,01/07/2019,Business Support Community Services,Central Services,http://opendatacommunities.org/def/concept/finance/sercop/objective/102,CRAEMER UK LTD,2574815,24/06/2019,87432,912,0, 280 grey bins and 560 green bins to,182012,Environment Waste Management Recycling
South Lakeland District Council,http://opendatacommunities.org/id/district-council/south-lakeland,01/07/2019,Development Implementation,Cultural Environmental Regulatory & Planning Services,http://opendatacommunities.org/def/concept/finance/sercop/objective/104,CUMBRIA CHAMBER OF COMMERCE,4211364,10/06/2019,86963,1200,0,Membership of Chamber of Commerce,151000,Consultancy Business
South Lakeland District Council,http://opendatacommunities.org/id/district-council/south-lakeland,01/07/2019,Business Support Community Services,SLDC as Agent,,CUMBRIA COUNTY COUNCIL,,10/06/2019,86956,54,0,DBS Checks for Taxi Drivers,908000,Public Bodies Council support services
South Lakeland District Council,http://opendatacommunities.org/id/district-council/south-lakeland,01/07/2019,Human Resources,Housing Services,http://opendatacommunities.org/def/concept/finance/sercop/objective/108,CUMBRIA COUNTY COUNCIL,,10/06/2019,86957,54,0,SB renew application,908000,Public Bodies Council support services
South Lakeland District Council,http://opendatacommunities.org/id/district-council/south-lakeland,01/07/2019,Business Support Community Services,SLDC as Agent,,CUMBRIA COUNTY COUNCIL,,26/06/2019,87326,216,0,DBS Checks for Taxi Drivers,908000,Public Bodies Council support services
South Lakeland District Council,http://opendatacommunities.org/id/district-council/south-lakeland,01/07/2019,Democratic and Member Services,Central Services,http://opendatacommunities.org/def/concept/finance/sercop/objective/102,CUMBRIA COUNTY COUNCIL,,24/06/2019,87414,18,0,Dispensation to block the 3 loading,908000,Public Bodies Council support services
South Lakeland District Council,http://opendatacommunities.org/id/district-council/south-lakeland,01/07/2019,Business Support Community Services,Central Services,http://opendatacommunities.org/def/concept/finance/sercop/objective/102,CUMBRIA COUNTY COUNCIL,,26/06/2019,87443,4084,0,LAND CHARGE SEARCH ENQUIRIES HIGHWAYS,908000,Public Bodies Council support services
South Lakeland District Council,http://opendatacommunities.org/id/district-council/south-lakeland,01/07/2019,Business Support Community Services,Central Services,http://opendatacommunities.org/def/concept/finance/sercop/objective/102,CUMBRIA COUNTY COUNCIL,,26/06/2019,87444,3757,0,LAND CHARGE SEARCH ENQUIRIES HIGHWAYS,908000,Public Bodies Council support services
South Lakeland District Council,http://opendatacommunities.org/id/district-council/south-lakeland,01/07/2019,Business Support Community Services,Cultural Environmental Regulatory & Planning Services,http://opendatacommunities.org/def/concept/finance/sercop/objective/104,CUMBRIA TRUCK CENTRE LTD,4298488,17/06/2019,87187,28.29,0,Parts,381300,Vehicle Mgt Industrial
South Lakeland District Council,http://opendatacommunities.org/id/district-council/south-lakeland,01/07/2019,Development Implementation,Cultural Environmental Regulatory & Planning Services,http://opendatacommunities.org/def/concept/finance/sercop/objective/104,CUMBRIA WASTE RECYCLING LTD,3162439,17/06/2019,87225,144.15,0,"Waste Collection at 124 Highgate,",182012,Environment Waste Management Recycling
South Lakeland District Council,http://opendatacommunities.org/id/district-council/south-lakeland,01/07/2019,Business Support Community Services,Cultural Environmental Regulatory & Planning Services,http://opendatacommunities.org/def/concept/finance/sercop/objective/104,CUMBRIA WASTE RECYCLING LTD,3162439,24/06/2019,87226,72.5,0,Provision of waste skips at 4 sites for,182012,Environment Waste Management Recycling
South Lakeland District Council,http://opendatacommunities.org/id/district-council/south-lakeland,01/07/2019,Leisure and Wellbeing,Highways & Transport Services,http://opendatacommunities.org/def/concept/finance/sercop/objective/107,CUMBRIA WASTE RECYCLING LTD,3162439,17/06/2019,87227,66.67,0,Skip hire at Westmorland multistorey,182012,Environment Waste Management Recycling
South Lakeland District Council,http://opendatacommunities.org/id/district-council/south-lakeland,01/07/2019,Business Support Community Services,Cultural Environmental Regulatory & Planning Services,http://opendatacommunities.org/def/concept/finance/sercop/objective/104,CUMBRIA WASTE RECYCLING LTD,3162439,24/06/2019,87228,72.5,0,Provision of waste skips at 4 sites for,182012,Environment Waste Management Recycling
South Lakeland District Council,http://opendatacommunities.org/id/district-council/south-lakeland,01/07/2019,Development Implementation,Central Services,http://opendatacommunities.org/def/concept/finance/sercop/objective/102,CUMBRIA WASTE RECYCLING LTD,3162439,17/06/2019,87229,45.25,0,Langstone House 360ltr Wheelie Bin,182012,Environment Waste Management Recycling
South Lakeland District Council,http://opendatacommunities.org/id/district-council/south-lakeland,01/07/2019,Kendal Town Hall,Cultural Environmental Regulatory & Planning Services,http://opendatacommunities.org/def/concept/finance/sercop/objective/104,CUMBRIA WASTE RECYCLING LTD,3162439,24/06/2019,87230,183.75,0,Weekly collection of mixed waste bins,182012,Environment Waste Management Recycling
South Lakeland District Council,http://opendatacommunities.org/id/district-council/south-lakeland,01/07/2019,Development Implementation,Central Services,http://opendatacommunities.org/def/concept/finance/sercop/objective/102,CUMBRIA WASTE RECYCLING LTD,3162439,17/06/2019,87231,307.35,0,South Lakeland House Bin & Skip Emptying,182012,Environment Waste Management Recycling
South Lakeland District Council,http://opendatacommunities.org/id/district-council/south-lakeland,01/07/2019,Lake Wardens,Cultural Environmental Regulatory & Planning Services,http://opendatacommunities.org/def/concept/finance/sercop/objective/104,CUMBRIA WASTE RECYCLING LTD,3162439,24/06/2019,87240,264.26,0,Emptying of Normal Refuse Wheelie Bins,182012,Environment Waste Management Recycling
South Lakeland District Council,http://opendatacommunities.org/id/district-council/south-lakeland,01/07/2019,Lake Wardens,Cultural Environmental Regulatory & Planning Services,http://opendatacommunities.org/def/concept/finance/sercop/objective/104,CUMBRIA WASTE RECYCLING LTD,3162439,26/06/2019,87241,291.58,0,Emptying of Normal Refuse Wheelie Bins,182012,Environment Waste Management Recycling
South Lakeland District Council,http://opendatacommunities.org/id/district-council/south-lakeland,01/07/2019,Cemeteries Office,Cultural Environmental Regulatory & Planning Services,http://opendatacommunities.org/def/concept/finance/sercop/objective/104,CUMBRIA WASTE RECYCLING LTD,3162439,24/06/2019,87279,118.3,0,SLDC Cemetery waste bin emptying April,182012,Environment Waste Management Recycling
South Lakeland District Council,http://opendatacommunities.org/id/district-council/south-lakeland,01/07/2019,Cemeteries Office,Cultural Environmental Regulatory & Planning Services,http://opendatacommunities.org/def/concept/finance/sercop/objective/104,CUMBRIA WASTE RECYCLING LTD,3162439,24/06/2019,87280,116.05,0,SLDC Cemetery waste bin emptying April,182012,Environment Waste Management Recycling
South Lakeland District Council,http://opendatacommunities.org/id/district-council/south-lakeland,01/07/2019,Cemeteries Office,Cultural Environmental Regulatory & Planning Services,http://opendatacommunities.org/def/concept/finance/sercop/objective/104,CUMBRIA WASTE RECYCLING LTD,3162439,24/06/2019,87281,45.25,0,SLDC Cemetery waste bin emptying April,182012,Environment Waste Management Recycling
South Lakeland District Council,http://opendatacommunities.org/id/district-council/south-lakeland,01/07/2019,Cemeteries Office,Cultural Environmental Regulatory & Planning Services,http://opendatacommunities.org/def/concept/finance/sercop/objective/104,CUMBRIA WASTE RECYCLING LTD,3162439,24/06/2019,87282,58.93,0,SLDC Cemetery waste bin emptying April,182012,Environment Waste Management Recycling
South Lakeland District Council,http://opendatacommunities.org/id/district-council/south-lakeland,01/07/2019,Cemeteries Office,Cultural Environmental Regulatory & Planning Services,http://opendatacommunities.org/def/concept/finance/sercop/objective/104,CUMBRIA WASTE RECYCLING LTD,3162439,24/06/2019,87283,83.15,0,SLDC Cemetery waste bin emptying April,182012,Environment Waste Management Recycling
South Lakeland District Council,http://opendatacommunities.org/id/district-council/south-lakeland,01/07/2019,Cemeteries Office,Cultural Environmental Regulatory & Planning Services,http://opendatacommunities.org/def/concept/finance/sercop/objective/104,CUMBRIA WASTE RECYCLING LTD,3162439,24/06/2019,87284,90.5,0,SLDC Cemetery waste bin emptying April,182012,Environment Waste Management Recycling
South Lakeland District Council,http://opendatacommunities.org/id/district-council/south-lakeland,01/07/2019,Cemeteries Office,Cultural Environmental Regulatory & Planning Services,http://opendatacommunities.org/def/concept/finance/sercop/objective/104,CUMBRIA WASTE RECYCLING LTD,3162439,24/06/2019,87285,39.2,0,SLDC Cemetery waste bin emptying April,182012,Environment Waste Management Recycling
South Lakeland District Council,http://opendatacommunities.org/id/district-council/south-lakeland,01/07/2019,Business Support Community Services,Cultural Environmental Regulatory & Planning Services,http://opendatacommunities.org/def/concept/finance/sercop/objective/104,CUMBRIA WASTE RECYCLING LTD,3162439,24/06/2019,87389,11905.5,0,Empty recycling banks in 2019/20,182012,Environment Waste Management Recycling
South Lakeland District Council,http://opendatacommunities.org/id/district-council/south-lakeland,01/07/2019,Business Support Community Services,Cultural Environmental Regulatory & Planning Services,http://opendatacommunities.org/def/concept/finance/sercop/objective/104,CUMBRIA WASTE RECYCLING LTD,3162439,24/06/2019,87391,390,0,Skip emptying at Ecclerigg & Ulverston,182012,Environment Waste Management Recycling
South Lakeland District Council,http://opendatacommunities.org/id/district-council/south-lakeland,01/07/2019,Business Support Community Services,Cultural Environmental Regulatory & Planning Services,http://opendatacommunities.org/def/concept/finance/sercop/objective/104,CUMBRIA WASTE RECYCLING LTD,3162439,24/06/2019,87392,1233.7,0,Skip emptying at Ecclerigg & Ulverston,182012,Environment Waste Management Recycling
South Lakeland District Council,http://opendatacommunities.org/id/district-council/south-lakeland,01/07/2019,Business Support Community Services,Cultural Environmental Regulatory & Planning Services,http://opendatacommunities.org/def/concept/finance/sercop/objective/104,DENNIS EAGLE LTD,3794455,10/06/2019,86988,100.85,0,Parts,381300,Vehicle Mgt Industrial
South Lakeland District Council,http://opendatacommunities.org/id/district-council/south-lakeland,01/07/2019,Business Support Community Services,Cultural Environmental Regulatory & Planning Services,http://opendatacommunities.org/def/concept/finance/sercop/objective/104,DENNIS EAGLE LTD,3794455,10/06/2019,86989,78.08,0,Parts,381300,Vehicle Mgt Industrial
South Lakeland District Council,http://opendatacommunities.org/id/district-council/south-lakeland,01/07/2019,Business Support Community Services,Cultural Environmental Regulatory & Planning Services,http://opendatacommunities.org/def/concept/finance/sercop/objective/104,DENNIS EAGLE LTD,3794455,10/06/2019,86990,151.48,0,Parts,381300,Vehicle Mgt Industrial
South Lakeland District Council,http://opendatacommunities.org/id/district-council/south-lakeland,01/07/2019,Business Support Community Services,Cultural Environmental Regulatory & Planning Services,http://opendatacommunities.org/def/concept/finance/sercop/objective/104,DENNIS EAGLE LTD,3794455,17/06/2019,87204,113.44,0,Parts,381300,Vehicle Mgt Industrial
South Lakeland District Council,http://opendatacommunities.org/id/district-council/south-lakeland,01/07/2019,Business Support Community Services,Cultural Environmental Regulatory & Planning Services,http://opendatacommunities.org/def/concept/finance/sercop/objective/104,DENNIS EAGLE LTD,3794455,19/06/2019,87249,208.06,0,Parts,381300,Vehicle Mgt Industrial
South Lakeland District Council,http://opendatacommunities.org/id/district-council/south-lakeland,01/07/2019,Business Support Community Services,Cultural Environmental Regulatory & Planning Services,http://opendatacommunities.org/def/concept/finance/sercop/objective/104,DENNIS EAGLE LTD,3794455,19/06/2019,87252,392.68,0,Parts,381300,Vehicle Mgt Industrial
South Lakeland District Council,http://opendatacommunities.org/id/district-council/south-lakeland,01/07/2019,Business Support Community Services,Cultural Environmental Regulatory & Planning Services,http://opendatacommunities.org/def/concept/finance/sercop/objective/104,DENNIS EAGLE LTD,3794455,19/06/2019,87253,609.27,0,Parts,381300,Vehicle Mgt Industrial
South Lakeland District Council,http://opendatacommunities.org/id/district-council/south-lakeland,01/07/2019,Business Support Community Services,Cultural Environmental Regulatory & Planning Services,http://opendatacommunities.org/def/concept/finance/sercop/objective/104,DENNIS EAGLE LTD,3794455,19/06/2019,87254,139.42,0,Parts,381300,Vehicle Mgt Industrial
South Lakeland District Council,http://opendatacommunities.org/id/district-council/south-lakeland,01/07/2019,Business Support Community Services,Cultural Environmental Regulatory & Planning Services,http://opendatacommunities.org/def/concept/finance/sercop/objective/104,DENNIS EAGLE LTD,3794455,19/06/2019,87258,13.34,0,Parts,381300,Vehicle Mgt Industrial
South Lakeland District Council,http://opendatacommunities.org/id/district-council/south-lakeland,01/07/2019,Printing Section,Central Services,http://opendatacommunities.org/def/concept/finance/sercop/objective/102,DIXON PRINTING CO LTD,,05/06/2019,86840,1000,0,"42,000 SLDC letterheads",191600,Facilities Printing
South Lakeland District Council,http://opendatacommunities.org/id/district-council/south-lakeland,01/07/2019,Business Support Community Services,SLDC as Agent,,DtL Creative Ltd,,24/06/2019,87420,3000,0,CBL Project Support Dec 18 - May 19,150000,Consultancy
South Lakeland District Council,http://opendatacommunities.org/id/district-council/south-lakeland,01/07/2019,Business Support Community Services,Cultural Environmental Regulatory & Planning Services,http://opendatacommunities.org/def/concept/finance/sercop/objective/104,EK MOTOR FACTORS LTD,838524,05/06/2019,86890,-20,0,Parts,381400,Vehicle Mgt Maintenance
South Lakeland District Council,http://opendatacommunities.org/id/district-council/south-lakeland,01/07/2019,Business Support Community Services,Cultural Environmental Regulatory & Planning Services,http://opendatacommunities.org/def/concept/finance/sercop/objective/104,EK MOTOR FACTORS LTD,838524,05/06/2019,86892,5.95,0,Parts,381400,Vehicle Mgt Maintenance
South Lakeland District Council,http://opendatacommunities.org/id/district-council/south-lakeland,01/07/2019,Business Support Community Services,Cultural Environmental Regulatory & Planning Services,http://opendatacommunities.org/def/concept/finance/sercop/objective/104,EK MOTOR FACTORS LTD,838524,05/06/2019,86893,23.53,0,Parts,381400,Vehicle Mgt Maintenance
South Lakeland District Council,http://opendatacommunities.org/id/district-council/south-lakeland,01/07/2019,Business Support Community Services,Cultural Environmental Regulatory & Planning Services,http://opendatacommunities.org/def/concept/finance/sercop/objective/104,EK MOTOR FACTORS LTD,838524,10/06/2019,86992,88.47,0,Parts,381400,Vehicle Mgt Maintenance
South Lakeland District Council,http://opendatacommunities.org/id/district-council/south-lakeland,01/07/2019,Business Support Community Services,Cultural Environmental Regulatory & Planning Services,http://opendatacommunities.org/def/concept/finance/sercop/objective/104,EK MOTOR FACTORS LTD,838524,10/06/2019,86993,27.11,0,Parts,381400,Vehicle Mgt Maintenance
South Lakeland District Council,http://opendatacommunities.org/id/district-council/south-lakeland,01/07/2019,Business Support Community Services,Cultural Environmental Regulatory & Planning Services,http://opendatacommunities.org/def/concept/finance/sercop/objective/104,EK MOTOR FACTORS LTD,838524,10/06/2019,86994,67.13,0,Parts,381400,Vehicle Mgt Maintenance
South Lakeland District Council,http://opendatacommunities.org/id/district-council/south-lakeland,01/07/2019,Business Support Community Services,Cultural Environmental Regulatory & Planning Services,http://opendatacommunities.org/def/concept/finance/sercop/objective/104,EK MOTOR FACTORS LTD,838524,10/06/2019,86995,48.47,0,Parts,381400,Vehicle Mgt Maintenance
South Lakeland District Council,http://opendatacommunities.org/id/district-council/south-lakeland,01/07/2019,Business Support Community Services,Cultural Environmental Regulatory & Planning Services,http://opendatacommunities.org/def/concept/finance/sercop/objective/104,EK MOTOR FACTORS LTD,838524,10/06/2019,86996,13.62,0,Parts,381400,Vehicle Mgt Maintenance
South Lakeland District Council,http://opendatacommunities.org/id/district-council/south-lakeland,01/07/2019,Business Support Community Services,Cultural Environmental Regulatory & Planning Services,http://opendatacommunities.org/def/concept/finance/sercop/objective/104,EK MOTOR FACTORS LTD,838524,10/06/2019,86997,40.3,0,Parts,381400,Vehicle Mgt Maintenance
South Lakeland District Council,http://opendatacommunities.org/id/district-council/south-lakeland,01/07/2019,Business Support Community Services,Cultural Environmental Regulatory & Planning Services,http://opendatacommunities.org/def/concept/finance/sercop/objective/104,EK MOTOR FACTORS LTD,838524,10/06/2019,86998,171.1,0,Parts,381400,Vehicle Mgt Maintenance
South Lakeland District Council,http://opendatacommunities.org/id/district-council/south-lakeland,01/07/2019,Business Support Community Services,Cultural Environmental Regulatory & Planning Services,http://opendatacommunities.org/def/concept/finance/sercop/objective/104,EK MOTOR FACTORS LTD,838524,10/06/2019,87008,5.95,0,Parts,381400,Vehicle Mgt Maintenance
South Lakeland District Council,http://opendatacommunities.org/id/district-council/south-lakeland,01/07/2019,Business Support Community Services,Cultural Environmental Regulatory & Planning Services,http://opendatacommunities.org/def/concept/finance/sercop/objective/104,EK MOTOR FACTORS LTD,838524,17/06/2019,87170,37.36,0,Parts,381400,Vehicle Mgt Maintenance
South Lakeland District Council,http://opendatacommunities.org/id/district-council/south-lakeland,01/07/2019,Business Support Community Services,Cultural Environmental Regulatory & Planning Services,http://opendatacommunities.org/def/concept/finance/sercop/objective/104,EK MOTOR FACTORS LTD,838524,17/06/2019,87179,60.5,0,Parts,381400,Vehicle Mgt Maintenance
South Lakeland District Council,http://opendatacommunities.org/id/district-council/south-lakeland,01/07/2019,Business Support Community Services,Cultural Environmental Regulatory & Planning Services,http://opendatacommunities.org/def/concept/finance/sercop/objective/104,EK MOTOR FACTORS LTD,838524,17/06/2019,87179,158.85,0,Parts,381400,Vehicle Mgt Maintenance
South Lakeland District Council,http://opendatacommunities.org/id/district-council/south-lakeland,01/07/2019,Business Support Community Services,Cultural Environmental Regulatory & Planning Services,http://opendatacommunities.org/def/concept/finance/sercop/objective/104,EK MOTOR FACTORS LTD,838524,17/06/2019,87180,155.6,0,Parts,381400,Vehicle Mgt Maintenance
South Lakeland District Council,http://opendatacommunities.org/id/district-council/south-lakeland,01/07/2019,Business Support Community Services,Cultural Environmental Regulatory & Planning Services,http://opendatacommunities.org/def/concept/finance/sercop/objective/104,EK MOTOR FACTORS LTD,838524,17/06/2019,87181,37.3,0,Parts,381400,Vehicle Mgt Maintenance
South Lakeland District Council,http://opendatacommunities.org/id/district-council/south-lakeland,01/07/2019,Business Support Community Services,Cultural Environmental Regulatory & Planning Services,http://opendatacommunities.org/def/concept/finance/sercop/objective/104,EK MOTOR FACTORS LTD,838524,17/06/2019,87182,5.99,0,Parts,381400,Vehicle Mgt Maintenance
South Lakeland District Council,http://opendatacommunities.org/id/district-council/south-lakeland,01/07/2019,Business Support Community Services,Cultural Environmental Regulatory & Planning Services,http://opendatacommunities.org/def/concept/finance/sercop/objective/104,EK MOTOR FACTORS LTD,838524,19/06/2019,87184,-84.9,0,Parts,381400,Vehicle Mgt Maintenance
South Lakeland District Council,http://opendatacommunities.org/id/district-council/south-lakeland,01/07/2019,Business Support Community Services,Cultural Environmental Regulatory & Planning Services,http://opendatacommunities.org/def/concept/finance/sercop/objective/104,EK MOTOR FACTORS LTD,838524,17/06/2019,87216,81.37,0,Parts,381400,Vehicle Mgt Maintenance
South Lakeland District Council,http://opendatacommunities.org/id/district-council/south-lakeland,01/07/2019,Business Support Community Services,Cultural Environmental Regulatory & Planning Services,http://opendatacommunities.org/def/concept/finance/sercop/objective/104,EK MOTOR FACTORS LTD,838524,17/06/2019,87221,79.35,0,Parts,381400,Vehicle Mgt Maintenance
South Lakeland District Council,http://opendatacommunities.org/id/district-council/south-lakeland,01/07/2019,Business Support Community Services,Cultural Environmental Regulatory & Planning Services,http://opendatacommunities.org/def/concept/finance/sercop/objective/104,EK MOTOR FACTORS LTD,838524,17/06/2019,87222,69.99,0,Parts,381400,Vehicle Mgt Maintenance
South Lakeland District Council,http://opendatacommunities.org/id/district-council/south-lakeland,01/07/2019,Business Support Community Services,Cultural Environmental Regulatory & Planning Services,http://opendatacommunities.org/def/concept/finance/sercop/objective/104,EK MOTOR FACTORS LTD,838524,19/06/2019,87259,14.5,0,Parts,381400,Vehicle Mgt Maintenance
South Lakeland District Council,http://opendatacommunities.org/id/district-council/south-lakeland,01/07/2019,Business Support Community Services,Cultural Environmental Regulatory & Planning Services,http://opendatacommunities.org/def/concept/finance/sercop/objective/104,EK MOTOR FACTORS LTD,838524,19/06/2019,87270,65.9,0,Parts,381400,Vehicle Mgt Maintenance
South Lakeland District Council,http://opendatacommunities.org/id/district-council/south-lakeland,01/07/2019,Business Support Community Services,Cultural Environmental Regulatory & Planning Services,http://opendatacommunities.org/def/concept/finance/sercop/objective/104,EK MOTOR FACTORS LTD,838524,19/06/2019,87274,27.25,0,Parts,381400,Vehicle Mgt Maintenance
South Lakeland District Council,http://opendatacommunities.org/id/district-council/south-lakeland,01/07/2019,Business Support Community Services,Cultural Environmental Regulatory & Planning Services,http://opendatacommunities.org/def/concept/finance/sercop/objective/104,EK MOTOR FACTORS LTD,838524,24/06/2019,87356,100.64,0,Parts,381400,Vehicle Mgt Maintenance
South Lakeland District Council,http://opendatacommunities.org/id/district-council/south-lakeland,01/07/2019,Business Support Community Services,Cultural Environmental Regulatory & Planning Services,http://opendatacommunities.org/def/concept/finance/sercop/objective/104,EK MOTOR FACTORS LTD,838524,24/06/2019,87383,87.3,0,Parts,381400,Vehicle Mgt Maintenance
South Lakeland District Council,http://opendatacommunities.org/id/district-council/south-lakeland,01/07/2019,Human Resources,Central Services,http://opendatacommunities.org/def/concept/finance/sercop/objective/102,EMA Business,,10/06/2019,86978,845.4,0,HR consultancy services May 19,261520,Human Resources Training
South Lakeland District Council,http://opendatacommunities.org/id/district-council/south-lakeland,01/07/2019,Business Support Community Services,Cultural Environmental Regulatory & Planning Services,http://opendatacommunities.org/def/concept/finance/sercop/objective/104,Enevo UK Ltd,9347391,10/06/2019,87014,416,0,Monthly subscriptions 2019/20,261517,ICT-Consultancy
South Lakeland District Council,http://opendatacommunities.org/id/district-council/south-lakeland,01/07/2019,Development Implementation,Central Services,http://opendatacommunities.org/def/concept/finance/sercop/objective/102,ENVIROFIRST LTD,5999123,10/06/2019,86980,238.56,0,Lowther Street Wheelie Bin Mixed,182012,Environment Waste Management Recycling
South Lakeland District Council,http://opendatacommunities.org/id/district-council/south-lakeland,01/07/2019,Lake Wardens,Cultural Environmental Regulatory & Planning Services,http://opendatacommunities.org/def/concept/finance/sercop/objective/104,ENVIROFIRST LTD,5999123,17/06/2019,87145,75.8,0,Rental & Emptying of Re-Cycling Bins at,182012,Environment Waste Management Recycling
South Lakeland District Council,http://opendatacommunities.org/id/district-council/south-lakeland,01/07/2019,Development Implementation,External Trading Accounts,,ENVIRONMENT AGENCY,,12/06/2019,87140,1580,0,Summerlands Septic Tank 2019/20 - Treat,202100,Financial Services Subscriptions
South Lakeland District Council,http://opendatacommunities.org/id/district-council/south-lakeland,01/07/2019,Business Support Community Services,Cultural Environmental Regulatory & Planning Services,http://opendatacommunities.org/def/concept/finance/sercop/objective/104,FAUN ZOELLER (UK) LTD,751804,19/06/2019,87255,341.82,0,Sweeper repairs,381400,Vehicle Mgt Maintenance
South Lakeland District Council,http://opendatacommunities.org/id/district-council/south-lakeland,01/07/2019,Environment and Housing,Central Services,http://opendatacommunities.org/def/concept/finance/sercop/objective/102,FERRET INFORMATION SYSTEMS LTD,2126033,17/06/2019,87198,190,0,Renovator PC Renewal ( 12 months cover).,271600,ICT Software Customised & Bespoke
South Lakeland District Council,http://opendatacommunities.org/id/district-council/south-lakeland,01/07/2019,Human Resources,Central Services,http://opendatacommunities.org/def/concept/finance/sercop/objective/102,FORBES SOLICITORS,,05/06/2019,86901,130.5,0,Professional Fees from 01/01/2019 to,281300,Legal Services Legal Opinion
South Lakeland District Council,http://opendatacommunities.org/id/district-council/south-lakeland,01/07/2019,Human Resources,Central Services,http://opendatacommunities.org/def/concept/finance/sercop/objective/102,FORBES SOLICITORS,,10/06/2019,86964,697.5,0,Professional Fees from 26/04/2019 to,281300,Legal Services Legal Opinion
South Lakeland District Council,http://opendatacommunities.org/id/district-council/south-lakeland,01/07/2019,Business Support Community Services,Cultural Environmental Regulatory & Planning Services,http://opendatacommunities.org/def/concept/finance/sercop/objective/104,GARWOOD EUROPE LTD,4333504,19/06/2019,87260,68.32,0,Switches,182011,Environment Waste Management Consumables
South Lakeland District Council,http://opendatacommunities.org/id/district-council/south-lakeland,01/07/2019,Business Support Community Services,Cultural Environmental Regulatory & Planning Services,http://opendatacommunities.org/def/concept/finance/sercop/objective/104,GARWOOD EUROPE LTD,4333504,26/06/2019,87359,108.65,0,Switches,182011,Environment Waste Management Consumables
South Lakeland District Council,http://opendatacommunities.org/id/district-council/south-lakeland,01/07/2019,Social Enterprise Admin,Highways & Transport Services,http://opendatacommunities.org/def/concept/finance/sercop/objective/107,GATES TRAVEL SERVICE,,05/06/2019,86306,348.6,0,3 x return train and tube tickets to,261600,HR Travel & Subsistence
South Lakeland District Council,http://opendatacommunities.org/id/district-council/south-lakeland,01/07/2019,Electoral Services,Central Services,http://opendatacommunities.org/def/concept/finance/sercop/objective/102,GATES TRAVEL SERVICE,,10/06/2019,86709,110.2,0,Train tickets (Oxenholme/Euston) ,261600,HR Travel & Subsistence
South Lakeland District Council,http://opendatacommunities.org/id/district-council/south-lakeland,01/07/2019,Development Implementation,Central Services,http://opendatacommunities.org/def/concept/finance/sercop/objective/102,GATES TRAVEL SERVICE,,17/06/2019,87176,22.8,0,Rail travel for AB to attend Connected,261600,HR Travel & Subsistence
South Lakeland District Council,http://opendatacommunities.org/id/district-council/south-lakeland,01/07/2019,Development Implementation,Central Services,http://opendatacommunities.org/def/concept/finance/sercop/objective/102,GATES TRAVEL SERVICE,,17/06/2019,87177,47.3,0,Rail travel for MW to attend Local,261600,HR Travel & Subsistence
South Lakeland District Council,http://opendatacommunities.org/id/district-council/south-lakeland,01/07/2019,Business Support Community Services,Housing Services,http://opendatacommunities.org/def/concept/finance/sercop/objective/108,GATES TRAVEL SERVICE,,19/06/2019,87310,112,0,Travel warrant Kendal to Bristol,261600,HR Travel & Subsistence
South Lakeland District Council,http://opendatacommunities.org/id/district-council/south-lakeland,01/07/2019,Development Implementation,Central Services,http://opendatacommunities.org/def/concept/finance/sercop/objective/102,GATES TRAVEL SERVICE,,26/06/2019,87396,113.2,0,Rail travel for MW to attend Local,261600,HR Travel & Subsistence
South Lakeland District Council,http://opendatacommunities.org/id/district-council/south-lakeland,01/07/2019,Business Support Community Services,Housing Services,http://opendatacommunities.org/def/concept/finance/sercop/objective/108,GATES TRAVEL SERVICE,,24/06/2019,87397,25.8,0,Kendal to Lancaster (Return),261600,HR Travel & Subsistence
South Lakeland District Council,http://opendatacommunities.org/id/district-council/south-lakeland,01/07/2019,Business Support Community Services,Housing Services,http://opendatacommunities.org/def/concept/finance/sercop/objective/108,GATES TRAVEL SERVICE,,24/06/2019,87398,53.1,0,Travel warrant,261600,HR Travel & Subsistence
South Lakeland District Council,http://opendatacommunities.org/id/district-council/south-lakeland,01/07/2019,Development Implementation,Central Services,http://opendatacommunities.org/def/concept/finance/sercop/objective/102,GATES TRAVEL SERVICE,,26/06/2019,87483,24.8,0,Rail travel for RL to event,261600,HR Travel & Subsistence
South Lakeland District Council,http://opendatacommunities.org/id/district-council/south-lakeland,01/07/2019,Business Support Community Services,Cultural Environmental Regulatory & Planning Services,http://opendatacommunities.org/def/concept/finance/sercop/objective/104,GB Sign Solutions Ltd,9609330,10/06/2019,87012,264.44,0,Street nameplates 2019/20,102400,Building Signage
South Lakeland District Council,http://opendatacommunities.org/id/district-council/south-lakeland,01/07/2019,Business Support Community Services,Cultural Environmental Regulatory & Planning Services,http://opendatacommunities.org/def/concept/finance/sercop/objective/104,GB Sign Solutions Ltd,9609330,17/06/2019,87200,155,0,Take Your Litter Home signs,102400,Building Signage
South Lakeland District Council,http://opendatacommunities.org/id/district-council/south-lakeland,01/07/2019,Development Implementation,Cultural Environmental Regulatory & Planning Services,http://opendatacommunities.org/def/concept/finance/sercop/objective/104,George Carrick,,24/06/2019,87374,120,0,Photography at event on 14th June 2019,191100,Facilities Design & Photography
South Lakeland District Council,http://opendatacommunities.org/id/district-council/south-lakeland,01/07/2019,Leisure and Wellbeing,Cultural Environmental Regulatory & Planning Services,http://opendatacommunities.org/def/concept/finance/sercop/objective/104,GRANGE OVER SANDS CIVIC SOCIETY,,26/06/2019,87445,1610.43,0,Maintain Promenade Beds and Orchard at,201700,Financial Services Grants
South Lakeland District Council,http://opendatacommunities.org/id/district-council/south-lakeland,01/07/2019,Financial Services,Central Services,http://opendatacommunities.org/def/concept/finance/sercop/objective/102,GRANT THORNTON UK LLP,OC307742,17/06/2019,87164,10751.25,0,19/20 External Audit Service due,201000,Financial Services Accountancy
South Lakeland District Council,http://opendatacommunities.org/id/district-council/south-lakeland,01/07/2019,Democratic and Member Services,Central Services,http://opendatacommunities.org/def/concept/finance/sercop/objective/102,GRANTS- MISCELLANEOUS,,17/06/2019,87159,400,0,locality donation to fund community,201700,Financial Services Grants
South Lakeland District Council,http://opendatacommunities.org/id/district-council/south-lakeland,01/07/2019,Democratic and Member Services,Central Services,http://opendatacommunities.org/def/concept/finance/sercop/objective/102,GRANTS- MISCELLANEOUS,,24/06/2019,87278,250,0,locality donation to fund sound,201700,Financial Services Grants
South Lakeland District Council,http://opendatacommunities.org/id/district-council/south-lakeland,01/07/2019,Development Implementation,Culture and Related Serv,http://opendatacommunities.org/def/concept/finance/sercop/objective/104,GRANTS- MISCELLANEOUS,,24/06/2019,87404,250,0,LIP Grant for Furness Youth Theatre,201700,Financial Services Grants
South Lakeland District Council,http://opendatacommunities.org/id/district-council/south-lakeland,01/07/2019,Business Support Community Services,Cultural Environmental Regulatory & Planning Services,http://opendatacommunities.org/def/concept/finance/sercop/objective/104,GRANTS- MISCELLANEOUS,,26/06/2019,87502,245,0,Bike Parking Grant - Lads and Girls,201700,Financial Services Grants
South Lakeland District Council,http://opendatacommunities.org/id/district-council/south-lakeland,01/07/2019,Democratic and Member Services,Central Services,http://opendatacommunities.org/def/concept/finance/sercop/objective/102,GRANTS- MISCELLANEOUS,,26/06/2019,87509,1000,0,locality donation to fund Windermere,201700,Financial Services Grants
South Lakeland District Council,http://opendatacommunities.org/id/district-council/south-lakeland,01/07/2019,Business Support Community Services,Cultural Environmental Regulatory & Planning Services,http://opendatacommunities.org/def/concept/finance/sercop/objective/104,Greenwich Leisure Ltd,,05/06/2019,85623,55630.25,0,Leisure Management Fees- Quarterly,291400,Arts & Leisure Services Sport & Fitness
South Lakeland District Council,http://opendatacommunities.org/id/district-council/south-lakeland,01/07/2019,Electoral Services,Central Services,http://opendatacommunities.org/def/concept/finance/sercop/objective/102,Greenwich Leisure Ltd,,12/06/2019,86884,6557.12,0,Room hire for verification and count,291400,Arts & Leisure Services Sport & Fitness
South Lakeland District Council,http://opendatacommunities.org/id/district-council/south-lakeland,01/07/2019,Electoral Services,Central Services,http://opendatacommunities.org/def/concept/finance/sercop/objective/102,Greenwich Leisure Ltd,,12/06/2019,86885,6557.12,0,Room hire for verification and count -,291400,Arts & Leisure Services Sport & Fitness
South Lakeland District Council,http://opendatacommunities.org/id/district-council/south-lakeland,01/07/2019,Environment and Housing,Housing Services,http://opendatacommunities.org/def/concept/finance/sercop/objective/108,GROWING CONCERNS LTD,,24/06/2019,87354,1461.94,0,For Handy Person Scheme 2019/2020,391200,Construction Engineering
South Lakeland District Council,http://opendatacommunities.org/id/district-council/south-lakeland,01/07/2019,Social Enterprise Admin,Culture and Related Serv,http://opendatacommunities.org/def/concept/finance/sercop/objective/104,HAGS-SMP Ltd,908021,17/06/2019,86887,58516.33,0,To remove existing play equipment and,331000,Sports Playground Equipment
South Lakeland District Council,http://opendatacommunities.org/id/district-council/south-lakeland,01/07/2019,Social Enterprise Admin,Culture and Related Serv,http://opendatacommunities.org/def/concept/finance/sercop/objective/104,HAGS-SMP Ltd,908021,24/06/2019,87346,15483.67,0,To remove existing play equipment and,331000,Sports Playground Equipment
South Lakeland District Council,http://opendatacommunities.org/id/district-council/south-lakeland,01/07/2019,Business Support Community Services,Cultural Environmental Regulatory & Planning Services,http://opendatacommunities.org/def/concept/finance/sercop/objective/104,HAKO MACHINES LIMITED,1414225,10/06/2019,87015,587.5,0,Maintenance 2019/20,131000,Cleaning & Janitorial Cleaning Materials
South Lakeland District Council,http://opendatacommunities.org/id/district-council/south-lakeland,01/07/2019,Business Support Community Services,Cultural Environmental Regulatory & Planning Services,http://opendatacommunities.org/def/concept/finance/sercop/objective/104,HAKO MACHINES LIMITED,1414225,17/06/2019,87205,381.93,0,Repair SL194,131000,Cleaning & Janitorial Cleaning Materials
South Lakeland District Council,http://opendatacommunities.org/id/district-council/south-lakeland,01/07/2019,Business Support Community Services,Cultural Environmental Regulatory & Planning Services,http://opendatacommunities.org/def/concept/finance/sercop/objective/104,HAKO MACHINES LIMITED,1414225,17/06/2019,87223,86.69,0,Parts & repairs,131000,Cleaning & Janitorial Cleaning Materials
South Lakeland District Council,http://opendatacommunities.org/id/district-council/south-lakeland,01/07/2019,Business Support Community Services,Cultural Environmental Regulatory & Planning Services,http://opendatacommunities.org/def/concept/finance/sercop/objective/104,HAKO MACHINES LIMITED,1414225,17/06/2019,87242,25.08,0,Rose joint,131000,Cleaning & Janitorial Cleaning Materials
South Lakeland District Council,http://opendatacommunities.org/id/district-council/south-lakeland,01/07/2019,Business Support Community Services,Cultural Environmental Regulatory & Planning Services,http://opendatacommunities.org/def/concept/finance/sercop/objective/104,HAKO MACHINES LIMITED,1414225,19/06/2019,87250,22.8,0,Pipes & hinges,131000,Cleaning & Janitorial Cleaning Materials
South Lakeland District Council,http://opendatacommunities.org/id/district-council/south-lakeland,01/07/2019,Business Support Community Services,Cultural Environmental Regulatory & Planning Services,http://opendatacommunities.org/def/concept/finance/sercop/objective/104,HAKO MACHINES LIMITED,1414225,19/06/2019,87256,60.63,0,Locking set,131000,Cleaning & Janitorial Cleaning Materials
South Lakeland District Council,http://opendatacommunities.org/id/district-council/south-lakeland,01/07/2019,Business Support Community Services,Cultural Environmental Regulatory & Planning Services,http://opendatacommunities.org/def/concept/finance/sercop/objective/104,HAKO MACHINES LIMITED,1414225,26/06/2019,87358,53.13,0,Pipes & hinges,131000,Cleaning & Janitorial Cleaning Materials
South Lakeland District Council,http://opendatacommunities.org/id/district-council/south-lakeland,01/07/2019,Business Support Community Services,Cultural Environmental Regulatory & Planning Services,http://opendatacommunities.org/def/concept/finance/sercop/objective/104,HAKO MACHINES LIMITED,1414225,26/06/2019,87487,10.55,0,Pipes & hinges,131000,Cleaning & Janitorial Cleaning Materials
South Lakeland District Council,http://opendatacommunities.org/id/district-council/south-lakeland,01/07/2019,Business Support Community Services,Cultural Environmental Regulatory & Planning Services,http://opendatacommunities.org/def/concept/finance/sercop/objective/104,HAKO MACHINES LIMITED,1414225,26/06/2019,87487,4.53,0,Pipes & hinges,131000,Cleaning & Janitorial Cleaning Materials
South Lakeland District Council,http://opendatacommunities.org/id/district-council/south-lakeland,01/07/2019,Business Support Community Services,Cultural Environmental Regulatory & Planning Services,http://opendatacommunities.org/def/concept/finance/sercop/objective/104,HAKO MACHINES LIMITED,1414225,26/06/2019,87492,25.08,0,Pipes & hinges,131000,Cleaning & Janitorial Cleaning Materials
South Lakeland District Council,http://opendatacommunities.org/id/district-council/south-lakeland,01/07/2019,Financial Services,Central Services,http://opendatacommunities.org/def/concept/finance/sercop/objective/102,Halecroft Recruitment Limited,9118934,10/06/2019,86876,8458.5,0,PL 50 days April to June 2019 @ 400,261300,HR Recruitment & Assessment
South Lakeland District Council,http://opendatacommunities.org/id/district-council/south-lakeland,01/07/2019,Business Support Community Services,Cultural Environmental Regulatory & Planning Services,http://opendatacommunities.org/def/concept/finance/sercop/objective/104,Harry Park Tyres Ltd,8131208,10/06/2019,86987,90,0,Tyres,381500,Vehicle Mgt Parts
South Lakeland District Council,http://opendatacommunities.org/id/district-council/south-lakeland,01/07/2019,Business Support Community Services,Cultural Environmental Regulatory & Planning Services,http://opendatacommunities.org/def/concept/finance/sercop/objective/104,Harry Park Tyres Ltd,8131208,17/06/2019,87186,30,0,Tyres,381500,Vehicle Mgt Parts
South Lakeland District Council,http://opendatacommunities.org/id/district-council/south-lakeland,01/07/2019,Business Support Community Services,Cultural Environmental Regulatory & Planning Services,http://opendatacommunities.org/def/concept/finance/sercop/objective/104,Harry Park Tyres Ltd,8131208,19/06/2019,87273,25,0,Tyres,381500,Vehicle Mgt Parts
South Lakeland District Council,http://opendatacommunities.org/id/district-council/south-lakeland,01/07/2019,Business Support Community Services,Cultural Environmental Regulatory & Planning Services,http://opendatacommunities.org/def/concept/finance/sercop/objective/104,Harry Park Tyres Ltd,8131208,19/06/2019,87316,2554.75,0,Tyres,381500,Vehicle Mgt Parts
South Lakeland District Council,http://opendatacommunities.org/id/district-council/south-lakeland,01/07/2019,Business Support Community Services,Cultural Environmental Regulatory & Planning Services,http://opendatacommunities.org/def/concept/finance/sercop/objective/104,Harry Park Tyres Ltd,8131208,24/06/2019,87395,197.5,0,Tyres,381500,Vehicle Mgt Parts
South Lakeland District Council,http://opendatacommunities.org/id/district-council/south-lakeland,01/07/2019,Cemeteries Office,Cultural Environmental Regulatory & Planning Services,http://opendatacommunities.org/def/concept/finance/sercop/objective/104,Hayes & Parkinson Ltd,467905,26/06/2019,87448,1257,0,Carry out Sec. 46 Public Health Burial,121000,Cemetery & Crematorium Burial & Crem
South Lakeland District Council,http://opendatacommunities.org/id/district-council/south-lakeland,01/07/2019,Business Support Community Services,Cultural Environmental Regulatory & Planning Services,http://opendatacommunities.org/def/concept/finance/sercop/objective/104,Haymarket Media Group Ltd,267189,19/06/2019,87244,1950,0,"APPEAL DECISION, HEARINGS AND CALL- IN",171114,Education Literature
South Lakeland District Council,http://opendatacommunities.org/id/district-council/south-lakeland,01/07/2019,Development Implementation,Central Services,http://opendatacommunities.org/def/concept/finance/sercop/objective/102,HEATONS MBI,,10/06/2019,86736,942.99,0,Sit/Stand Desk (left hand return) as,211200,Furniture & Soft Furn Office Furniture
South Lakeland District Council,http://opendatacommunities.org/id/district-council/south-lakeland,01/07/2019,Development Implementation,Central Services,http://opendatacommunities.org/def/concept/finance/sercop/objective/102,HEATONS MBI,,10/06/2019,86737,128.5,0,1 x Rectangular Desk (Oak - W1600mm),211200,Furniture & Soft Furn Office Furniture
South Lakeland District Council,http://opendatacommunities.org/id/district-council/south-lakeland,01/07/2019,Environment and Housing,Housing Services,http://opendatacommunities.org/def/concept/finance/sercop/objective/108,Homes For Ulverston CLT Ltd,,17/06/2019,87190,470,0,H4US Brewery Development - Scheme Grant,250000,Housing
South Lakeland District Council,http://opendatacommunities.org/id/district-council/south-lakeland,01/07/2019,Environment and Housing,Housing Services,http://opendatacommunities.org/def/concept/finance/sercop/objective/108,Homes For Ulverston CLT Ltd,,17/06/2019,87195,7600,0,H4US Brewery Development - Scheme Grant,250000,Housing
South Lakeland District Council,http://opendatacommunities.org/id/district-council/south-lakeland,01/07/2019,Environment and Housing,Housing Services,http://opendatacommunities.org/def/concept/finance/sercop/objective/108,Homes For Ulverston CLT Ltd,,26/06/2019,87497,100,0,H4US Brewery Development - Scheme Grant,250000,Housing
South Lakeland District Council,http://opendatacommunities.org/id/district-council/south-lakeland,01/07/2019,Business Support Community Services,Cultural Environmental Regulatory & Planning Services,http://opendatacommunities.org/def/concept/finance/sercop/objective/104,HYDRAIR TRUCK & TRAILER PARTS LTD,,05/06/2019,86894,132.84,0,Parts,381500,Vehicle Mgt Parts
South Lakeland District Council,http://opendatacommunities.org/id/district-council/south-lakeland,01/07/2019,Business Support Community Services,Cultural Environmental Regulatory & Planning Services,http://opendatacommunities.org/def/concept/finance/sercop/objective/104,HYDRAIR TRUCK & TRAILER PARTS LTD,,19/06/2019,87269,11.7,0,Parts,381500,Vehicle Mgt Parts
South Lakeland District Council,http://opendatacommunities.org/id/district-council/south-lakeland,01/07/2019,Business Support Community Services,Cultural Environmental Regulatory & Planning Services,http://opendatacommunities.org/def/concept/finance/sercop/objective/104,HYDRAIR TRUCK & TRAILER PARTS LTD,,24/06/2019,87385,338,0,Parts,381500,Vehicle Mgt Parts
South Lakeland District Council,http://opendatacommunities.org/id/district-council/south-lakeland,01/07/2019,Development Implementation,Central Services,http://opendatacommunities.org/def/concept/finance/sercop/objective/102,INSTITUTION OF ECONOMIC DEVELOPMENT,,19/06/2019,87295,600,0,Membership x 7 for 2019/20,202100,Financial Services Subscriptions
South Lakeland District Council,http://opendatacommunities.org/id/district-council/south-lakeland,01/07/2019,Development Implementation,Cultural Environmental Regulatory & Planning Services,http://opendatacommunities.org/def/concept/finance/sercop/objective/104,INSTITUTION OF ECONOMIC DEVELOPMENT,,19/06/2019,87295,299,0,Membership x 7 for 2019/20,202100,Financial Services Subscriptions
South Lakeland District Council,http://opendatacommunities.org/id/district-council/south-lakeland,01/07/2019,Revenues and Benefits,Central Services,http://opendatacommunities.org/def/concept/finance/sercop/objective/102,IRRV (L & C BRANCH),,26/06/2019,87447,75,0,IRRV Seminar - 3 places at a Council,201700,Financial Services Grants
South Lakeland District Council,http://opendatacommunities.org/id/district-council/south-lakeland,01/07/2019,Business Support Community Services,Cultural Environmental Regulatory & Planning Services,http://opendatacommunities.org/def/concept/finance/sercop/objective/104,J R RICHARDSON LTD,2225792,19/06/2019,87261,291.21,0,Vehicle washing consumables,381500,Vehicle Mgt Parts
South Lakeland District Council,http://opendatacommunities.org/id/district-council/south-lakeland,01/07/2019,Leisure and Wellbeing,Cultural Environmental Regulatory & Planning Services,http://opendatacommunities.org/def/concept/finance/sercop/objective/104,J S Cleaning Services,,10/06/2019,86915,75,0,For weekly cleaning of the chapel,131010,Cleaning & Janitorial Cleaning Materials
South Lakeland District Council,http://opendatacommunities.org/id/district-council/south-lakeland,01/07/2019,Development Implementation,Central Services,http://opendatacommunities.org/def/concept/finance/sercop/objective/102,J S Cleaning Services,,10/06/2019,86931,360,0,Cleaner for SLDC - April 2019 Onwards,131010,Cleaning & Janitorial Cleaning Materials
South Lakeland District Council,http://opendatacommunities.org/id/district-council/south-lakeland,01/07/2019,Environment and Housing,Housing Services,http://opendatacommunities.org/def/concept/finance/sercop/objective/108,James Andrews Recruitment Solutions,6834852,05/06/2019,86882,1573.6,0,Agency worker for Community-led Housing,261400,HR Temporary & Agency Staff
South Lakeland District Council,http://opendatacommunities.org/id/district-council/south-lakeland,01/07/2019,Environment and Housing,Housing Services,http://opendatacommunities.org/def/concept/finance/sercop/objective/108,James Andrews Recruitment Solutions,6834852,05/06/2019,86883,1612.94,0,Agency worker for Community-led Housing,261400,HR Temporary & Agency Staff
South Lakeland District Council,http://opendatacommunities.org/id/district-council/south-lakeland,01/07/2019,Environment and Housing,Housing Services,http://opendatacommunities.org/def/concept/finance/sercop/objective/108,James Andrews Recruitment Solutions,6834852,10/06/2019,86977,1258.88,0,Agency worker for Community-led Housing,261400,HR Temporary & Agency Staff
South Lakeland District Council,http://opendatacommunities.org/id/district-council/south-lakeland,01/07/2019,Environment and Housing,Housing Services,http://opendatacommunities.org/def/concept/finance/sercop/objective/108,James Andrews Recruitment Solutions,6834852,17/06/2019,87156,1573.6,0,Agency worker for Community-led Housing,261400,HR Temporary & Agency Staff
South Lakeland District Council,http://opendatacommunities.org/id/district-council/south-lakeland,01/07/2019,Environment and Housing,Housing Services,http://opendatacommunities.org/def/concept/finance/sercop/objective/108,James Andrews Recruitment Solutions,6834852,26/06/2019,87353,1573.6,0,Agency worker for Community-led Housing,261400,HR Temporary & Agency Staff
South Lakeland District Council,http://opendatacommunities.org/id/district-council/south-lakeland,01/07/2019,Business Support Community Services,Cultural Environmental Regulatory & Planning Services,http://opendatacommunities.org/def/concept/finance/sercop/objective/104,JEWSON LIMITED,348407,19/06/2019,87317,70.72,0,Fixtures & fittings 2019/20,101400,Building General Materials
South Lakeland District Council,http://opendatacommunities.org/id/district-council/south-lakeland,01/07/2019,Business Support Community Services,Housing Services,http://opendatacommunities.org/def/concept/finance/sercop/objective/108,JJM Properties,,12/06/2019,87117,680,0,Rent in advance ,250010,Housing Letting Agents
South Lakeland District Council,http://opendatacommunities.org/id/district-council/south-lakeland,01/07/2019,Business Support Community Services,Housing Services,http://opendatacommunities.org/def/concept/finance/sercop/objective/108,JLA LTD,1094178,05/06/2019,86900,198,0,Annual fire safety duct clean - tumble,131100,Cleaning & Janitorial Laundry Equipment
South Lakeland District Council,http://opendatacommunities.org/id/district-council/south-lakeland,01/07/2019,Development Implementation,Cultural Environmental Regulatory & Planning Services,http://opendatacommunities.org/def/concept/finance/sercop/objective/104,Just H Design,,19/06/2019,87290,237,0,Maps for Bowness & Windermere Forward,191100,Facilities Design & Photography
South Lakeland District Council,http://opendatacommunities.org/id/district-council/south-lakeland,01/07/2019,Business Support Community Services,Cultural Environmental Regulatory & Planning Services,http://opendatacommunities.org/def/concept/finance/sercop/objective/104,K & S Commercial Ltd,9068885,24/06/2019,87394,706,0,Repair tachograph,381400,Vehicle Mgt Maintenance
South Lakeland District Council,http://opendatacommunities.org/id/district-council/south-lakeland,01/07/2019,Business Support Community Services,Cultural Environmental Regulatory & Planning Services,http://opendatacommunities.org/def/concept/finance/sercop/objective/104,K S INTERNATIONAL LTD,2703321,19/06/2019,87322,285,0,Parts,381500,Vehicle Mgt Parts
South Lakeland District Council,http://opendatacommunities.org/id/district-council/south-lakeland,01/07/2019,Business Support Community Services,Cultural Environmental Regulatory & Planning Services,http://opendatacommunities.org/def/concept/finance/sercop/objective/104,K S INTERNATIONAL LTD,2703321,19/06/2019,87328,122,0,Parts,381500,Vehicle Mgt Parts
South Lakeland District Council,http://opendatacommunities.org/id/district-council/south-lakeland,01/07/2019,Lake Wardens,Cultural Environmental Regulatory & Planning Services,http://opendatacommunities.org/def/concept/finance/sercop/objective/104,KENTDALE FIRST AID TRAINING,,17/06/2019,86914,50,0,De-fib re-accreditation Course for,261500,HR Training & Conferences
South Lakeland District Council,http://opendatacommunities.org/id/district-council/south-lakeland,01/07/2019,Lake Wardens,Cultural Environmental Regulatory & Planning Services,http://opendatacommunities.org/def/concept/finance/sercop/objective/104,KENTDALE FIRST AID TRAINING,,24/06/2019,87347,200,0,2 x FAW re-qualification course for,261500,HR Training & Conferences
South Lakeland District Council,http://opendatacommunities.org/id/district-council/south-lakeland,01/07/2019,Business Support Community Services,Cultural Environmental Regulatory & Planning Services,http://opendatacommunities.org/def/concept/finance/sercop/objective/104,KIRKBY LONSDALE TOWN COUNCIL,,10/06/2019,86877,5500,0,"24 Main Street, Kirkby Lonsdale - grant",908000,Public Bodies Council support services
South Lakeland District Council,http://opendatacommunities.org/id/district-council/south-lakeland,01/07/2019,Development Implementation,Cultural Environmental Regulatory & Planning Services,http://opendatacommunities.org/def/concept/finance/sercop/objective/104,KOLEK CONSULTING,,12/06/2019,87138,160,0,Assistance with Kendal BID,151000,Consultancy Business
South Lakeland District Council,http://opendatacommunities.org/id/district-council/south-lakeland,01/07/2019,Business Support Community Services,Cultural Environmental Regulatory & Planning Services,http://opendatacommunities.org/def/concept/finance/sercop/objective/104,LAKELAND SUPPLIES,,19/06/2019,87327,15,0,Fixtures & fittings,101610,Building Hand Tools
South Lakeland District Council,http://opendatacommunities.org/id/district-council/south-lakeland,01/07/2019,Business Support Community Services,Cultural Environmental Regulatory & Planning Services,http://opendatacommunities.org/def/concept/finance/sercop/objective/104,Lakesloos Ltd,,17/06/2019,87160,1890,0,Provide portable toilets from 24/05/19,191510,Facilities Portable Building Hire
South Lakeland District Council,http://opendatacommunities.org/id/district-council/south-lakeland,01/07/2019,Development Implementation,Central Services,http://opendatacommunities.org/def/concept/finance/sercop/objective/102,LAMBERT SMITH HAMPTON GROUP,2521225,19/06/2019,87293,41331,0,Property Services Contract - April 2019,999999,Unclassifiable
South Lakeland District Council,http://opendatacommunities.org/id/district-council/south-lakeland,01/07/2019,Development Implementation,Central Services,http://opendatacommunities.org/def/concept/finance/sercop/objective/102,LAMBERT SMITH HAMPTON GROUP,2521225,24/06/2019,87375,1150.86,0,Kendal Markets Review,999999,Unclassifiable
South Lakeland District Council,http://opendatacommunities.org/id/district-council/south-lakeland,01/07/2019,Business Support Community Services,Cultural Environmental Regulatory & Planning Services,http://opendatacommunities.org/def/concept/finance/sercop/objective/104,LANCASHIRE DAF,,10/06/2019,87020,32.76,0,Parts,381400,Vehicle Mgt Maintenance
South Lakeland District Council,http://opendatacommunities.org/id/district-council/south-lakeland,01/07/2019,Business Support Community Services,Cultural Environmental Regulatory & Planning Services,http://opendatacommunities.org/def/concept/finance/sercop/objective/104,LANCASHIRE DAF,,10/06/2019,87021,32.76,0,Parts,381400,Vehicle Mgt Maintenance
South Lakeland District Council,http://opendatacommunities.org/id/district-council/south-lakeland,01/07/2019,Business Support Community Services,Cultural Environmental Regulatory & Planning Services,http://opendatacommunities.org/def/concept/finance/sercop/objective/104,LANCASHIRE DAF,,19/06/2019,87265,40.64,0,Parts,381400,Vehicle Mgt Maintenance
South Lakeland District Council,http://opendatacommunities.org/id/district-council/south-lakeland,01/07/2019,Business Support Community Services,Cultural Environmental Regulatory & Planning Services,http://opendatacommunities.org/def/concept/finance/sercop/objective/104,LANCASHIRE DAF,,19/06/2019,87266,828.44,0,Parts,381400,Vehicle Mgt Maintenance
South Lakeland District Council,http://opendatacommunities.org/id/district-council/south-lakeland,01/07/2019,Business Support Community Services,Cultural Environmental Regulatory & Planning Services,http://opendatacommunities.org/def/concept/finance/sercop/objective/104,LANCASHIRE DAF,,19/06/2019,87267,118.68,0,Parts,381400,Vehicle Mgt Maintenance
South Lakeland District Council,http://opendatacommunities.org/id/district-council/south-lakeland,01/07/2019,Business Support Community Services,Cultural Environmental Regulatory & Planning Services,http://opendatacommunities.org/def/concept/finance/sercop/objective/104,LANCASHIRE DAF,,19/06/2019,87268,28.6,0,Parts,381400,Vehicle Mgt Maintenance
South Lakeland District Council,http://opendatacommunities.org/id/district-council/south-lakeland,01/07/2019,Business Support Community Services,Cultural Environmental Regulatory & Planning Services,http://opendatacommunities.org/def/concept/finance/sercop/objective/104,LANCASHIRE DAF,,24/06/2019,87361,238.38,0,Parts,381400,Vehicle Mgt Maintenance
South Lakeland District Council,http://opendatacommunities.org/id/district-council/south-lakeland,01/07/2019,Business Support Community Services,Cultural Environmental Regulatory & Planning Services,http://opendatacommunities.org/def/concept/finance/sercop/objective/104,LANCASHIRE DAF,,24/06/2019,87436,328.58,0,Parts,381400,Vehicle Mgt Maintenance
South Lakeland District Council,http://opendatacommunities.org/id/district-council/south-lakeland,01/07/2019,Business Support Community Services,Cultural Environmental Regulatory & Planning Services,http://opendatacommunities.org/def/concept/finance/sercop/objective/104,LANCASHIRE DAF,,26/06/2019,87488,112,0,Parts,381400,Vehicle Mgt Maintenance
South Lakeland District Council,http://opendatacommunities.org/id/district-council/south-lakeland,01/07/2019,Business Support Community Services,Cultural Environmental Regulatory & Planning Services,http://opendatacommunities.org/def/concept/finance/sercop/objective/104,LANCASHIRE DAF,,26/06/2019,87489,115.15,0,Parts,381400,Vehicle Mgt Maintenance
South Lakeland District Council,http://opendatacommunities.org/id/district-council/south-lakeland,01/07/2019,Business Support Community Services,Cultural Environmental Regulatory & Planning Services,http://opendatacommunities.org/def/concept/finance/sercop/objective/104,LANCASTER TRAINING SERVICES LTD,1447612,05/06/2019,86891,402.92,0,Training 2019/209 (GWK),261500,HR Training & Conferences
South Lakeland District Council,http://opendatacommunities.org/id/district-council/south-lakeland,01/07/2019,Business Support Community Services,Cultural Environmental Regulatory & Planning Services,http://opendatacommunities.org/def/concept/finance/sercop/objective/104,LANCASTER TRAINING SERVICES LTD,1447612,10/06/2019,87000,150,0,Training 2019/209 (GWK),261500,HR Training & Conferences
South Lakeland District Council,http://opendatacommunities.org/id/district-council/south-lakeland,01/07/2019,Business Support Community Services,Housing Services,http://opendatacommunities.org/def/concept/finance/sercop/objective/108,LANDLORD,,05/06/2019,86873,400,0,Monthly rent ,250000,Housing
South Lakeland District Council,http://opendatacommunities.org/id/district-council/south-lakeland,01/07/2019,Business Support Community Services,Housing Services,http://opendatacommunities.org/def/concept/finance/sercop/objective/108,LANDLORD,,10/06/2019,86940,42.2,0,Payment  - homeless,250000,Housing
South Lakeland District Council,http://opendatacommunities.org/id/district-council/south-lakeland,01/07/2019,Business Support Community Services,Housing Services,http://opendatacommunities.org/def/concept/finance/sercop/objective/108,LANDLORD,,12/06/2019,87119,600,0,Monthly rent ,250000,Housing
South Lakeland District Council,http://opendatacommunities.org/id/district-council/south-lakeland,01/07/2019,Business Support Community Services,Housing Services,http://opendatacommunities.org/def/concept/finance/sercop/objective/108,LANDLORD,,19/06/2019,87319,890,0,Monthly rent ,250000,Housing
South Lakeland District Council,http://opendatacommunities.org/id/district-council/south-lakeland,01/07/2019,Business Support Community Services,Housing Services,http://opendatacommunities.org/def/concept/finance/sercop/objective/108,LANDLORD,,24/06/2019,87440,700,0,Monthly rent ,250000,Housing
South Lakeland District Council,http://opendatacommunities.org/id/district-council/south-lakeland,01/07/2019,Electoral Services,Central Services,http://opendatacommunities.org/def/concept/finance/sercop/objective/102,Laura Ashley - The Belsfield,,24/06/2019,87423,250,0,Room hire and refreshments on 2 May,291000,Arts & Leisure Services Events
South Lakeland District Council,http://opendatacommunities.org/id/district-council/south-lakeland,01/07/2019,Electoral Services,Central Services,http://opendatacommunities.org/def/concept/finance/sercop/objective/102,Laura Ashley - The Belsfield,,24/06/2019,87424,250,0,Room hire - polling station for,291000,Arts & Leisure Services Events
South Lakeland District Council,http://opendatacommunities.org/id/district-council/south-lakeland,01/07/2019,Financial Services,Central Services,http://opendatacommunities.org/def/concept/finance/sercop/objective/102,LAVAT Consulting t/a PSTAX,4810070,17/06/2019,87169,400,0,2x places at VAT and CIS: The Reverse,202100,Financial Services Subscriptions
South Lakeland District Council,http://opendatacommunities.org/id/district-council/south-lakeland,01/07/2019,Development Implementation,Cultural Environmental Regulatory & Planning Services,http://opendatacommunities.org/def/concept/finance/sercop/objective/104,Layer Surveys Ltd,11410514,10/06/2019,86921,2500,0,Drainage & Utilities Survey for Grange,151000,Consultancy Business
South Lakeland District Council,http://opendatacommunities.org/id/district-council/south-lakeland,01/07/2019,Environment and Housing,Housing,http://opendatacommunities.org/def/concept/finance/sercop/objective/108,Levens Community Project,,05/06/2019,86576,7768.5,0,Levens Community Project - Community,250000,Housing
South Lakeland District Council,http://opendatacommunities.org/id/district-council/south-lakeland,01/07/2019,Financial Services,Central Services,http://opendatacommunities.org/def/concept/finance/sercop/objective/102,LINK ASSET SERVICES,2652033,24/06/2019,87382,300,0,2x delegates at IFRS  16 Workshop,209999,Financial Services Not Elsewhere Classif
South Lakeland District Council,http://opendatacommunities.org/id/district-council/south-lakeland,01/07/2019,Development Implementation,Central Services,http://opendatacommunities.org/def/concept/finance/sercop/objective/102,LRM Security Ltd,,10/06/2019,86930,51.8,0,Key Holding & Call Out Alarm Response,192213,Facilities Security Manned Guarding
South Lakeland District Council,http://opendatacommunities.org/id/district-council/south-lakeland,01/07/2019,Development Implementation,Cultural Environmental Regulatory & Planning Services,http://opendatacommunities.org/def/concept/finance/sercop/objective/104,LRM Security Ltd,,10/06/2019,86930,18.4,0,Key Holding & Call Out Alarm Response,192213,Facilities Security Manned Guarding
South Lakeland District Council,http://opendatacommunities.org/id/district-council/south-lakeland,01/07/2019,Development Implementation,Cultural Environmental Regulatory & Planning Services,http://opendatacommunities.org/def/concept/finance/sercop/objective/104,LRM Security Ltd,,10/06/2019,86930,18.4,0,Key Holding & Call Out Alarm Response,192213,Facilities Security Manned Guarding
South Lakeland District Council,http://opendatacommunities.org/id/district-council/south-lakeland,01/07/2019,Policy & Partnerships,Central Services,http://opendatacommunities.org/def/concept/finance/sercop/objective/102,Lunesdale Hall,,17/06/2019,87191,45,0,Room hire of the Lunsdale Hall for,192110,Facilities Room Hire
South Lakeland District Council,http://opendatacommunities.org/id/district-council/south-lakeland,01/07/2019,Business Support Community Services,Cultural Environmental Regulatory & Planning Services,http://opendatacommunities.org/def/concept/finance/sercop/objective/104,M G D LTD,,17/06/2019,87185,35,0,MOTs 2019/20,381400,Vehicle Mgt Maintenance
South Lakeland District Council,http://opendatacommunities.org/id/district-council/south-lakeland,01/07/2019,Business Support Community Services,Cultural Environmental Regulatory & Planning Services,http://opendatacommunities.org/def/concept/finance/sercop/objective/104,M G D LTD,,19/06/2019,87271,35,0,MOTs 2019/20,381400,Vehicle Mgt Maintenance
South Lakeland District Council,http://opendatacommunities.org/id/district-council/south-lakeland,01/07/2019,Business Support Community Services,Cultural Environmental Regulatory & Planning Services,http://opendatacommunities.org/def/concept/finance/sercop/objective/104,Macdonald & Company Freelance Ltd,3882135,17/06/2019,87208,1705.5,0,Supply of Contract Worker for Planning,261400,HR Temporary & Agency Staff
South Lakeland District Council,http://opendatacommunities.org/id/district-council/south-lakeland,01/07/2019,Business Support Community Services,Cultural Environmental Regulatory & Planning Services,http://opendatacommunities.org/def/concept/finance/sercop/objective/104,Macdonald & Company Freelance Ltd,3882135,17/06/2019,87239,1723.5,0,Supply of Contract Worker for Planning,261400,HR Temporary & Agency Staff
South Lakeland District Council,http://opendatacommunities.org/id/district-council/south-lakeland,01/07/2019,Business Support Community Services,Cultural Environmental Regulatory & Planning Services,http://opendatacommunities.org/def/concept/finance/sercop/objective/104,Macdonald & Company Freelance Ltd,3882135,24/06/2019,87411,2052,0,Supply of Contract Worker for Planning,261400,HR Temporary & Agency Staff
South Lakeland District Council,http://opendatacommunities.org/id/district-council/south-lakeland,01/07/2019,Electoral Services,Central Services,http://opendatacommunities.org/def/concept/finance/sercop/objective/102,MANCHESTER CITY COUNCIL,,24/06/2019,86955,410,0,Large print and braille ballot papers,908000,Public Bodies Council support services
South Lakeland District Council,http://opendatacommunities.org/id/district-council/south-lakeland,01/07/2019,Business Support Community Services,Cultural Environmental Regulatory & Planning Services,http://opendatacommunities.org/def/concept/finance/sercop/objective/104,Masterstaff Limited,2777593,10/06/2019,87003,129.6,0,Agency staff 2019/20,261300,HR Recruitment & Assessment
South Lakeland District Council,http://opendatacommunities.org/id/district-council/south-lakeland,01/07/2019,Business Support Community Services,Cultural Environmental Regulatory & Planning Services,http://opendatacommunities.org/def/concept/finance/sercop/objective/104,Masterstaff Limited,2777593,10/06/2019,87004,2620.8,0,Agency staff 2019/20,261300,HR Recruitment & Assessment
South Lakeland District Council,http://opendatacommunities.org/id/district-council/south-lakeland,01/07/2019,Business Support Community Services,Cultural Environmental Regulatory & Planning Services,http://opendatacommunities.org/def/concept/finance/sercop/objective/104,Masterstaff Limited,2777593,24/06/2019,87388,1882.8,0,Agency staff 2019/20,261300,HR Recruitment & Assessment
South Lakeland District Council,http://opendatacommunities.org/id/district-council/south-lakeland,01/07/2019,Business Support Community Services,Cultural Environmental Regulatory & Planning Services,http://opendatacommunities.org/def/concept/finance/sercop/objective/104,Masterstaff Limited,2777593,24/06/2019,87433,2077.2,0,Agency staff 2019/20,261300,HR Recruitment & Assessment
South Lakeland District Council,http://opendatacommunities.org/id/district-council/south-lakeland,01/07/2019,Lake Wardens,Cultural Environmental Regulatory & Planning Services,http://opendatacommunities.org/def/concept/finance/sercop/objective/104,Medical Gas Solutions Ltd T/a,4967365,17/06/2019,87247,39.06,0,Monthly Rental of Medical Gas Cylinders,221100,Health & Safety� Maintenance
South Lakeland District Council,http://opendatacommunities.org/id/district-council/south-lakeland,01/07/2019,Social Enterprise Admin,Highways & Transport Services,http://opendatacommunities.org/def/concept/finance/sercop/objective/107,METRIC GROUP LIMITED,2560839,10/06/2019,86922,735,0,Web hosting costs 2019-20,359999,Street & Traffic Not Elsewhere Classifie
South Lakeland District Council,http://opendatacommunities.org/id/district-council/south-lakeland,01/07/2019,Social Enterprise Admin,Highways & Transport Services,http://opendatacommunities.org/def/concept/finance/sercop/objective/107,METRIC GROUP LIMITED,2560839,26/06/2019,86958,75.05,0,Machines Maintenance 2019-20,359999,Street & Traffic Not Elsewhere Classifie
South Lakeland District Council,http://opendatacommunities.org/id/district-council/south-lakeland,01/07/2019,Social Enterprise Admin,Highways & Transport Services,http://opendatacommunities.org/def/concept/finance/sercop/objective/107,METRIC GROUP LIMITED,2560839,26/06/2019,86958,75.05,0,Machines Maintenance 2019-20,359999,Street & Traffic Not Elsewhere Classifie
South Lakeland District Council,http://opendatacommunities.org/id/district-council/south-lakeland,01/07/2019,Social Enterprise Admin,Highways & Transport Services,http://opendatacommunities.org/def/concept/finance/sercop/objective/107,METRIC GROUP LIMITED,2560839,26/06/2019,86958,75.05,0,Machines Maintenance 2019-20,359999,Street & Traffic Not Elsewhere Classifie
South Lakeland District Council,http://opendatacommunities.org/id/district-council/south-lakeland,01/07/2019,Social Enterprise Admin,Highways & Transport Services,http://opendatacommunities.org/def/concept/finance/sercop/objective/107,METRIC GROUP LIMITED,2560839,26/06/2019,86958,150.1,0,Machines Maintenance 2019-20,359999,Street & Traffic Not Elsewhere Classifie
South Lakeland District Council,http://opendatacommunities.org/id/district-council/south-lakeland,01/07/2019,Social Enterprise Admin,Highways & Transport Services,http://opendatacommunities.org/def/concept/finance/sercop/objective/107,METRIC GROUP LIMITED,2560839,26/06/2019,86958,150.1,0,Machines Maintenance 2019-20,359999,Street & Traffic Not Elsewhere Classifie
South Lakeland District Council,http://opendatacommunities.org/id/district-council/south-lakeland,01/07/2019,Social Enterprise Admin,Highways & Transport Services,http://opendatacommunities.org/def/concept/finance/sercop/objective/107,METRIC GROUP LIMITED,2560839,26/06/2019,86958,208.83,0,Machines Maintenance 2019-20,359999,Street & Traffic Not Elsewhere Classifie
South Lakeland District Council,http://opendatacommunities.org/id/district-council/south-lakeland,01/07/2019,Social Enterprise Admin,Highways & Transport Services,http://opendatacommunities.org/def/concept/finance/sercop/objective/107,METRIC GROUP LIMITED,2560839,26/06/2019,86958,75.05,0,Machines Maintenance 2019-20,359999,Street & Traffic Not Elsewhere Classifie
South Lakeland District Council,http://opendatacommunities.org/id/district-council/south-lakeland,01/07/2019,Social Enterprise Admin,Highways & Transport Services,http://opendatacommunities.org/def/concept/finance/sercop/objective/107,METRIC GROUP LIMITED,2560839,26/06/2019,86958,344.73,0,Machines Maintenance 2019-20,359999,Street & Traffic Not Elsewhere Classifie
South Lakeland District Council,http://opendatacommunities.org/id/district-council/south-lakeland,01/07/2019,Social Enterprise Admin,Highways & Transport Services,http://opendatacommunities.org/def/concept/finance/sercop/objective/107,METRIC GROUP LIMITED,2560839,26/06/2019,86958,150.1,0,Machines Maintenance 2019-20,359999,Street & Traffic Not Elsewhere Classifie
South Lakeland District Council,http://opendatacommunities.org/id/district-council/south-lakeland,01/07/2019,Social Enterprise Admin,Highways & Transport Services,http://opendatacommunities.org/def/concept/finance/sercop/objective/107,METRIC GROUP LIMITED,2560839,26/06/2019,86958,208.83,0,Machines Maintenance 2019-20,359999,Street & Traffic Not Elsewhere Classifie
South Lakeland District Council,http://opendatacommunities.org/id/district-council/south-lakeland,01/07/2019,Social Enterprise Admin,Highways & Transport Services,http://opendatacommunities.org/def/concept/finance/sercop/objective/107,METRIC GROUP LIMITED,2560839,26/06/2019,86958,75.05,0,Machines Maintenance 2019-20,359999,Street & Traffic Not Elsewhere Classifie
South Lakeland District Council,http://opendatacommunities.org/id/district-council/south-lakeland,01/07/2019,Social Enterprise Admin,Highways & Transport Services,http://opendatacommunities.org/def/concept/finance/sercop/objective/107,METRIC GROUP LIMITED,2560839,26/06/2019,86958,225.15,0,Machines Maintenance 2019-20,359999,Street & Traffic Not Elsewhere Classifie
South Lakeland District Council,http://opendatacommunities.org/id/district-council/south-lakeland,01/07/2019,Social Enterprise Admin,Highways & Transport Services,http://opendatacommunities.org/def/concept/finance/sercop/objective/107,METRIC GROUP LIMITED,2560839,26/06/2019,86958,150.1,0,Machines Maintenance 2019-20,359999,Street & Traffic Not Elsewhere Classifie
South Lakeland District Council,http://opendatacommunities.org/id/district-council/south-lakeland,01/07/2019,Social Enterprise Admin,Highways & Transport Services,http://opendatacommunities.org/def/concept/finance/sercop/objective/107,METRIC GROUP LIMITED,2560839,26/06/2019,86958,75.05,0,Machines Maintenance 2019-20,359999,Street & Traffic Not Elsewhere Classifie
South Lakeland District Council,http://opendatacommunities.org/id/district-council/south-lakeland,01/07/2019,Social Enterprise Admin,Highways & Transport Services,http://opendatacommunities.org/def/concept/finance/sercop/objective/107,METRIC GROUP LIMITED,2560839,26/06/2019,86958,75.05,0,Machines Maintenance 2019-20,359999,Street & Traffic Not Elsewhere Classifie
South Lakeland District Council,http://opendatacommunities.org/id/district-council/south-lakeland,01/07/2019,Social Enterprise Admin,Highways & Transport Services,http://opendatacommunities.org/def/concept/finance/sercop/objective/107,METRIC GROUP LIMITED,2560839,26/06/2019,86958,75.05,0,Machines Maintenance 2019-20,359999,Street & Traffic Not Elsewhere Classifie
South Lakeland District Council,http://opendatacommunities.org/id/district-council/south-lakeland,01/07/2019,Social Enterprise Admin,Highways & Transport Services,http://opendatacommunities.org/def/concept/finance/sercop/objective/107,METRIC GROUP LIMITED,2560839,26/06/2019,86958,225.15,0,Machines Maintenance 2019-20,359999,Street & Traffic Not Elsewhere Classifie
South Lakeland District Council,http://opendatacommunities.org/id/district-council/south-lakeland,01/07/2019,Social Enterprise Admin,Highways & Transport Services,http://opendatacommunities.org/def/concept/finance/sercop/objective/107,METRIC GROUP LIMITED,2560839,26/06/2019,86958,75.05,0,Machines Maintenance 2019-20,359999,Street & Traffic Not Elsewhere Classifie
South Lakeland District Council,http://opendatacommunities.org/id/district-council/south-lakeland,01/07/2019,Social Enterprise Admin,Highways & Transport Services,http://opendatacommunities.org/def/concept/finance/sercop/objective/107,METRIC GROUP LIMITED,2560839,26/06/2019,86958,225.15,0,Machines Maintenance 2019-20,359999,Street & Traffic Not Elsewhere Classifie
South Lakeland District Council,http://opendatacommunities.org/id/district-council/south-lakeland,01/07/2019,Social Enterprise Admin,Highways & Transport Services,http://opendatacommunities.org/def/concept/finance/sercop/objective/107,METRIC GROUP LIMITED,2560839,26/06/2019,86958,75.05,0,Machines Maintenance 2019-20,359999,Street & Traffic Not Elsewhere Classifie
South Lakeland District Council,http://opendatacommunities.org/id/district-council/south-lakeland,01/07/2019,Social Enterprise Admin,Highways & Transport Services,http://opendatacommunities.org/def/concept/finance/sercop/objective/107,METRIC GROUP LIMITED,2560839,26/06/2019,86958,75.05,0,Machines Maintenance 2019-20,359999,Street & Traffic Not Elsewhere Classifie
South Lakeland District Council,http://opendatacommunities.org/id/district-council/south-lakeland,01/07/2019,Social Enterprise Admin,Highways & Transport Services,http://opendatacommunities.org/def/concept/finance/sercop/objective/107,METRIC GROUP LIMITED,2560839,26/06/2019,86958,150.1,0,Machines Maintenance 2019-20,359999,Street & Traffic Not Elsewhere Classifie
South Lakeland District Council,http://opendatacommunities.org/id/district-council/south-lakeland,01/07/2019,Social Enterprise Admin,Highways & Transport Services,http://opendatacommunities.org/def/concept/finance/sercop/objective/107,METRIC GROUP LIMITED,2560839,26/06/2019,86958,75.05,0,Machines Maintenance 2019-20,359999,Street & Traffic Not Elsewhere Classifie
South Lakeland District Council,http://opendatacommunities.org/id/district-council/south-lakeland,01/07/2019,Social Enterprise Admin,Highways & Transport Services,http://opendatacommunities.org/def/concept/finance/sercop/objective/107,METRIC GROUP LIMITED,2560839,26/06/2019,86958,75.05,0,Machines Maintenance 2019-20,359999,Street & Traffic Not Elsewhere Classifie
South Lakeland District Council,http://opendatacommunities.org/id/district-council/south-lakeland,01/07/2019,Social Enterprise Admin,Highways & Transport Services,http://opendatacommunities.org/def/concept/finance/sercop/objective/107,METRIC GROUP LIMITED,2560839,26/06/2019,86958,75.05,0,Machines Maintenance 2019-20,359999,Street & Traffic Not Elsewhere Classifie
South Lakeland District Council,http://opendatacommunities.org/id/district-council/south-lakeland,01/07/2019,Social Enterprise Admin,Highways & Transport Services,http://opendatacommunities.org/def/concept/finance/sercop/objective/107,METRIC GROUP LIMITED,2560839,26/06/2019,86958,150.1,0,Machines Maintenance 2019-20,359999,Street & Traffic Not Elsewhere Classifie
South Lakeland District Council,http://opendatacommunities.org/id/district-council/south-lakeland,01/07/2019,Social Enterprise Admin,Highways & Transport Services,http://opendatacommunities.org/def/concept/finance/sercop/objective/107,METRIC GROUP LIMITED,2560839,26/06/2019,86958,150.1,0,Machines Maintenance 2019-20,359999,Street & Traffic Not Elsewhere Classifie
South Lakeland District Council,http://opendatacommunities.org/id/district-council/south-lakeland,01/07/2019,Social Enterprise Admin,Highways & Transport Services,http://opendatacommunities.org/def/concept/finance/sercop/objective/107,METRIC GROUP LIMITED,2560839,26/06/2019,86958,75.05,0,Machines Maintenance 2019-20,359999,Street & Traffic Not Elsewhere Classifie
South Lakeland District Council,http://opendatacommunities.org/id/district-council/south-lakeland,01/07/2019,Social Enterprise Admin,Highways & Transport Services,http://opendatacommunities.org/def/concept/finance/sercop/objective/107,METRIC GROUP LIMITED,2560839,26/06/2019,86958,75.05,0,Machines Maintenance 2019-20,359999,Street & Traffic Not Elsewhere Classifie
South Lakeland District Council,http://opendatacommunities.org/id/district-council/south-lakeland,01/07/2019,Social Enterprise Admin,Highways & Transport Services,http://opendatacommunities.org/def/concept/finance/sercop/objective/107,METRIC GROUP LIMITED,2560839,26/06/2019,86958,75.05,0,Machines Maintenance 2019-20,359999,Street & Traffic Not Elsewhere Classifie
South Lakeland District Council,http://opendatacommunities.org/id/district-council/south-lakeland,01/07/2019,Social Enterprise Admin,Highways & Transport Services,http://opendatacommunities.org/def/concept/finance/sercop/objective/107,METRIC GROUP LIMITED,2560839,26/06/2019,86958,72.93,0,Machines Maintenance 2019-20,359999,Street & Traffic Not Elsewhere Classifie
South Lakeland District Council,http://opendatacommunities.org/id/district-council/south-lakeland,01/07/2019,Social Enterprise Admin,Highways & Transport Services,http://opendatacommunities.org/def/concept/finance/sercop/objective/107,METRIC GROUP LIMITED,2560839,26/06/2019,86958,375.25,0,Machines Maintenance 2019-20,359999,Street & Traffic Not Elsewhere Classifie
South Lakeland District Council,http://opendatacommunities.org/id/district-council/south-lakeland,01/07/2019,Social Enterprise Admin,Highways & Transport Services,http://opendatacommunities.org/def/concept/finance/sercop/objective/107,METRIC GROUP LIMITED,2560839,26/06/2019,86958,75.05,0,Machines Maintenance 2019-20,359999,Street & Traffic Not Elsewhere Classifie
South Lakeland District Council,http://opendatacommunities.org/id/district-council/south-lakeland,01/07/2019,Social Enterprise Admin,Highways & Transport Services,http://opendatacommunities.org/def/concept/finance/sercop/objective/107,METRIC GROUP LIMITED,2560839,26/06/2019,86958,75.05,0,Machines Maintenance 2019-20,359999,Street & Traffic Not Elsewhere Classifie
South Lakeland District Council,http://opendatacommunities.org/id/district-council/south-lakeland,01/07/2019,Social Enterprise Admin,Highways & Transport Services,http://opendatacommunities.org/def/concept/finance/sercop/objective/107,METRIC GROUP LIMITED,2560839,26/06/2019,86958,150.1,0,Machines Maintenance 2019-20,359999,Street & Traffic Not Elsewhere Classifie
South Lakeland District Council,http://opendatacommunities.org/id/district-council/south-lakeland,01/07/2019,Social Enterprise Admin,Highways & Transport Services,http://opendatacommunities.org/def/concept/finance/sercop/objective/107,METRIC GROUP LIMITED,2560839,26/06/2019,86958,150.1,0,Machines Maintenance 2019-20,359999,Street & Traffic Not Elsewhere Classifie
South Lakeland District Council,http://opendatacommunities.org/id/district-council/south-lakeland,01/07/2019,Social Enterprise Admin,Highways & Transport Services,http://opendatacommunities.org/def/concept/finance/sercop/objective/107,METRIC GROUP LIMITED,2560839,26/06/2019,86958,150.1,0,Machines Maintenance 2019-20,359999,Street & Traffic Not Elsewhere Classifie
South Lakeland District Council,http://opendatacommunities.org/id/district-council/south-lakeland,01/07/2019,Social Enterprise Admin,Highways & Transport Services,http://opendatacommunities.org/def/concept/finance/sercop/objective/107,METRIC GROUP LIMITED,2560839,26/06/2019,86958,375.25,0,Machines Maintenance 2019-20,359999,Street & Traffic Not Elsewhere Classifie
South Lakeland District Council,http://opendatacommunities.org/id/district-council/south-lakeland,01/07/2019,Social Enterprise Admin,Highways & Transport Services,http://opendatacommunities.org/def/concept/finance/sercop/objective/107,METRIC GROUP LIMITED,2560839,26/06/2019,86958,75.05,0,Machines Maintenance 2019-20,359999,Street & Traffic Not Elsewhere Classifie
South Lakeland District Council,http://opendatacommunities.org/id/district-council/south-lakeland,01/07/2019,Social Enterprise Admin,Highways & Transport Services,http://opendatacommunities.org/def/concept/finance/sercop/objective/107,METRIC GROUP LIMITED,2560839,26/06/2019,86958,75.05,0,Machines Maintenance 2019-20,359999,Street & Traffic Not Elsewhere Classifie
South Lakeland District Council,http://opendatacommunities.org/id/district-council/south-lakeland,01/07/2019,Human Resources,Central Services,http://opendatacommunities.org/def/concept/finance/sercop/objective/102,MIDLAND SOFTWARE LTD,1852206,10/06/2019,86710,3597.55,0,GDPR 10-04-2019 to 09-07-2019,271600,ICT Software Customised & Bespoke
South Lakeland District Council,http://opendatacommunities.org/id/district-council/south-lakeland,01/07/2019,Human Resources,Central Services,http://opendatacommunities.org/def/concept/finance/sercop/objective/102,MIDLAND SOFTWARE LTD,1852206,19/06/2019,87189,112.5,0,GDPR 10-04-2019 to 09-07-2019,271600,ICT Software Customised & Bespoke
South Lakeland District Council,http://opendatacommunities.org/id/district-council/south-lakeland,01/07/2019,Business Support Community Services,Cultural Environmental Regulatory & Planning Services,http://opendatacommunities.org/def/concept/finance/sercop/objective/104,MILNTHORPE KENNELS & CATTERY,8932302,05/06/2019,86889,2791.67,0,Stray dog contract kennelling fees,181500,Environment Animal Services
South Lakeland District Council,http://opendatacommunities.org/id/district-council/south-lakeland,01/07/2019,Business Support Community Services,Housing Services,http://opendatacommunities.org/def/concept/finance/sercop/objective/108,Mint Homes,8345036,12/06/2019,87118,80,0,Holding deposit,202000,Financial Services Rents
South Lakeland District Council,http://opendatacommunities.org/id/district-council/south-lakeland,01/07/2019,Business Support Community Services,Housing Services,http://opendatacommunities.org/def/concept/finance/sercop/objective/108,LANDLORD,,17/06/2019,87238,1190,0,Monthly rent ,202000,Financial Services Rents
South Lakeland District Council,http://opendatacommunities.org/id/district-council/south-lakeland,01/07/2019,Business Support Community Services,Housing Services,http://opendatacommunities.org/def/concept/finance/sercop/objective/108,My Dream Cleaners Ltd,9839482,10/06/2019,86917,199.38,0,Cleaning at Town View Fields,131320,Cleaning & Janitorial Cleaning Service
South Lakeland District Council,http://opendatacommunities.org/id/district-council/south-lakeland,01/07/2019,Business Support Community Services,Housing Services,http://opendatacommunities.org/def/concept/finance/sercop/objective/108,My Dream Cleaners Ltd,9839482,10/06/2019,86918,246.12,0,Cleaning at Town View Fields,131320,Cleaning & Janitorial Cleaning Service
South Lakeland District Council,http://opendatacommunities.org/id/district-council/south-lakeland,01/07/2019,Business Support Community Services,Housing Services,http://opendatacommunities.org/def/concept/finance/sercop/objective/108,My Dream Cleaners Ltd,9839482,12/06/2019,87121,226.88,0,Cleaning at Town View Fields,131320,Cleaning & Janitorial Cleaning Service
South Lakeland District Council,http://opendatacommunities.org/id/district-council/south-lakeland,01/07/2019,Business Support Community Services,Housing Services,http://opendatacommunities.org/def/concept/finance/sercop/objective/108,My Dream Cleaners Ltd,9839482,24/06/2019,87288,240.62,0,Cleaning at Town View Fields,131320,Cleaning & Janitorial Cleaning Service
South Lakeland District Council,http://opendatacommunities.org/id/district-council/south-lakeland,01/07/2019,Business Support Community Services,Cultural Environmental Regulatory & Planning Services,http://opendatacommunities.org/def/concept/finance/sercop/objective/104,MYERSCOUGH COLLEGE,,10/06/2019,87031,1000,0,Manual handling training,179999,Education Not Elsewhere Classified
South Lakeland District Council,http://opendatacommunities.org/id/district-council/south-lakeland,01/07/2019,Development Implementation,Culture and Related Serv,http://opendatacommunities.org/def/concept/finance/sercop/objective/104,Natural England,,05/06/2019,86790,687.5,0,Promenade Sea Wall - Grange over Sands,151000,Consultancy Business
South Lakeland District Council,http://opendatacommunities.org/id/district-council/south-lakeland,01/07/2019,Leisure and Wellbeing,Cultural Environmental Regulatory & Planning Services,http://opendatacommunities.org/def/concept/finance/sercop/objective/104,NETWORK RAIL COMMERCIAL PROPERTY,,12/06/2019,87144,50.02,0,Privilege of footpath promenade &,191700,Facilities Property Management
South Lakeland District Council,http://opendatacommunities.org/id/district-council/south-lakeland,01/07/2019,Social Enterprise Admin,Cultural Environmental Regulatory & Planning Services,http://opendatacommunities.org/def/concept/finance/sercop/objective/104,NEWSQUEST MEDIA GROUP LTD,3102566,17/06/2019,87142,86.64,0,PUBLIC NOTICES FOR PLANNING 1 APRIL - 31,191000,Facilities Advertising
South Lakeland District Council,http://opendatacommunities.org/id/district-council/south-lakeland,01/07/2019,Social Enterprise Admin,Cultural Environmental Regulatory & Planning Services,http://opendatacommunities.org/def/concept/finance/sercop/objective/104,NEWSQUEST MEDIA GROUP LTD,3102566,12/06/2019,87146,148.12,0,PUBLIC NOTICES FOR PLANNING 1 APRIL - 31,191000,Facilities Advertising
South Lakeland District Council,http://opendatacommunities.org/id/district-council/south-lakeland,01/07/2019,Democratic and Member Services,Central Services,http://opendatacommunities.org/def/concept/finance/sercop/objective/102,NEWSQUEST MEDIA GROUP LTD,3102566,17/06/2019,87154,340.56,0,PO to advertise a Notice in the,191000,Facilities Advertising
South Lakeland District Council,http://opendatacommunities.org/id/district-council/south-lakeland,01/07/2019,Policy & Partnerships,Central Services,http://opendatacommunities.org/def/concept/finance/sercop/objective/102,NORTHGATE VEHICLE HIRE LTD,1434157,17/06/2019,86845,135.3,0,Cost of two van hires for European,381600,Vehicle Mgt Leasing
South Lakeland District Council,http://opendatacommunities.org/id/district-council/south-lakeland,01/07/2019,Policy & Partnerships,Central Services,http://opendatacommunities.org/def/concept/finance/sercop/objective/102,NORTHGATE VEHICLE HIRE LTD,1434157,17/06/2019,86846,36.66,0,Cost of two van hires for European,381600,Vehicle Mgt Leasing
South Lakeland District Council,http://opendatacommunities.org/id/district-council/south-lakeland,01/07/2019,Policy & Partnerships,Central Services,http://opendatacommunities.org/def/concept/finance/sercop/objective/102,NORTHGATE VEHICLE HIRE LTD,1434157,24/06/2019,87309,74.21,0,Car Hire for APSE Conference in,381600,Vehicle Mgt Leasing
South Lakeland District Council,http://opendatacommunities.org/id/district-council/south-lakeland,01/07/2019,Business Support Community Services,SLDC as Agent,,NOWMEDICAL,4338252,17/06/2019,87194,2850,0,Training - Cumbria Choice Partners,311600,Healthcare Services
South Lakeland District Council,http://opendatacommunities.org/id/district-council/south-lakeland,01/07/2019,Environment and Housing,Central Services,http://opendatacommunities.org/def/concept/finance/sercop/objective/102,OCEAN MEDIA GROUP LTD,1680420,10/06/2019,86913,546,0,Housing 2019 Conference one day members,191000,Facilities Advertising
South Lakeland District Council,http://opendatacommunities.org/id/district-council/south-lakeland,01/07/2019,Social Enterprise Admin,Highways & Transport Services,http://opendatacommunities.org/def/concept/finance/sercop/objective/107,Orbility,,24/06/2019,87372,5032.44,0,Maintenance for equipment in,111200,Catering Food & Beverages
South Lakeland District Council,http://opendatacommunities.org/id/district-council/south-lakeland,01/07/2019,Social Enterprise Admin,Highways & Transport Services,http://opendatacommunities.org/def/concept/finance/sercop/objective/107,Orbility,,24/06/2019,87373,5032.44,0,Maintenance for equipment in,111200,Catering Food & Beverages
South Lakeland District Council,http://opendatacommunities.org/id/district-council/south-lakeland,01/07/2019,Electoral Services,Central Services,http://opendatacommunities.org/def/concept/finance/sercop/objective/102,PAKFLATT (UK) LTD,NI12926,12/06/2019,87141,705,0,Blind Devices for EPE,192110,Facilities Room Hire
South Lakeland District Council,http://opendatacommunities.org/id/district-council/south-lakeland,01/07/2019,Democratic Services,Central Services,http://opendatacommunities.org/def/concept/finance/sercop/objective/102,ParkLane Plowden Chambers,,26/06/2019,87453,700,0,SLDC v MG,280000,Legal Services
South Lakeland District Council,http://opendatacommunities.org/id/district-council/south-lakeland,01/07/2019,Social Enterprise Admin,SLDC as Agent,,PAY BY PHONE (PAYPOINT),,12/06/2019,87123,889.09,0,Pay-by-Phone fees 2019-20,351400,Street & Traffic Traffic Control
South Lakeland District Council,http://opendatacommunities.org/id/district-council/south-lakeland,01/07/2019,Business Support Community Services,Cultural Environmental Regulatory & Planning Services,http://opendatacommunities.org/def/concept/finance/sercop/objective/104,PENNINGTONS (KENDAL) LIMITED,434649,10/06/2019,87001,2750,0,Annual Charge for use of Link Road at,182013,Environment Waste Mgt Waste Collection
South Lakeland District Council,http://opendatacommunities.org/id/district-council/south-lakeland,01/07/2019,Development Implementation,Central Services,http://opendatacommunities.org/def/concept/finance/sercop/objective/102,PHS GROUP PLC,,05/06/2019,86834,8.63,0,Low Risk Waste Collection & Sanitary,131312,Cleaning & Janitorial Washroom Sanitat
South Lakeland District Council,http://opendatacommunities.org/id/district-council/south-lakeland,01/07/2019,Development Implementation,Central Services,http://opendatacommunities.org/def/concept/finance/sercop/objective/102,PHS GROUP PLC,,05/06/2019,86835,5.75,0,Low Risk Waste Collection & Sanitary,131312,Cleaning & Janitorial Washroom Sanitat
South Lakeland District Council,http://opendatacommunities.org/id/district-council/south-lakeland,01/07/2019,Revenues and Benefits,Central Services,http://opendatacommunities.org/def/concept/finance/sercop/objective/102,PITNEY BOWES LTD,182037,10/06/2019,86954,185.5,0,2019-20 Stationery & office supplies,301200,Mail Services� Postage
South Lakeland District Council,http://opendatacommunities.org/id/district-council/south-lakeland,01/07/2019,Revenues and Benefits,Central Services,http://opendatacommunities.org/def/concept/finance/sercop/objective/102,PITNEY BOWES LTD,182037,24/06/2019,87428,670,0,2019-20 Stationery & office supplies,301200,Mail Services� Postage
South Lakeland District Council,http://opendatacommunities.org/id/district-council/south-lakeland,01/07/2019,Leisure and Wellbeing,Cultural Environmental Regulatory & Planning Services,http://opendatacommunities.org/def/concept/finance/sercop/objective/104,PPL PRS Limited,10376001,10/06/2019,86976,2416.41,0,Parks performing rights licence fee for,202100,Financial Services Subscriptions
South Lakeland District Council,http://opendatacommunities.org/id/district-council/south-lakeland,01/07/2019,Printing Section,Central Services,http://opendatacommunities.org/def/concept/finance/sercop/objective/102,PRESCO UK LTD,5923806,10/06/2019,86932,66.22,0,14.3mm silver wires,191600,Facilities Printing
South Lakeland District Council,http://opendatacommunities.org/id/district-council/south-lakeland,01/07/2019,Printing Section,Central Services,http://opendatacommunities.org/def/concept/finance/sercop/objective/102,PRESCO UK LTD,5923806,10/06/2019,86933,66.92,0,Renze 3:1 7/16th silver wires,191600,Facilities Printing
South Lakeland District Council,http://opendatacommunities.org/id/district-council/south-lakeland,01/07/2019,Electoral Services,Central Services,http://opendatacommunities.org/def/concept/finance/sercop/objective/102,Print.UK.Com,,12/06/2019,87149,17883.27,0,Printing of postal packs and ballot,191600,Facilities Printing
South Lakeland District Council,http://opendatacommunities.org/id/district-council/south-lakeland,01/07/2019,Electoral Services,Central Services,http://opendatacommunities.org/def/concept/finance/sercop/objective/102,Print.UK.Com,,12/06/2019,87150,9246.5,0,Postal vote postage costs for European,191600,Facilities Printing
South Lakeland District Council,http://opendatacommunities.org/id/district-council/south-lakeland,01/07/2019,Development Implementation,Cultural Environmental Regulatory & Planning Services,http://opendatacommunities.org/def/concept/finance/sercop/objective/104,PS BUSINESS MATTERS,8147185,17/06/2019,87197,1750,0,Kendal Futures Support Programme -,151900,Consultancy Management
South Lakeland District Council,http://opendatacommunities.org/id/district-council/south-lakeland,01/07/2019,Business Support Community Services,Cultural Environmental Regulatory & Planning Services,http://opendatacommunities.org/def/concept/finance/sercop/objective/104,QPS PLASTIC LTD,,10/06/2019,87017,233.75,0,Bumper,109999,Building Not Elsewhere Classified
South Lakeland District Council,http://opendatacommunities.org/id/district-council/south-lakeland,01/07/2019,Business Support Community Services,Cultural Environmental Regulatory & Planning Services,http://opendatacommunities.org/def/concept/finance/sercop/objective/104,QPS PLASTIC LTD,,10/06/2019,87019,154.75,0,Bumper,109999,Building Not Elsewhere Classified
South Lakeland District Council,http://opendatacommunities.org/id/district-council/south-lakeland,01/07/2019,Development Implementation,Cultural Environmental Regulatory & Planning Services,http://opendatacommunities.org/def/concept/finance/sercop/objective/104,Quadriga Contracts Ltd,2989538,24/06/2019,87376,505.32,0,Masonry Repair Works ,100000,Building Construction materials
South Lakeland District Council,http://opendatacommunities.org/id/district-council/south-lakeland,01/07/2019,Development Management,Cultural Environmental Regulatory & Planning Services,http://opendatacommunities.org/def/concept/finance/sercop/objective/104,R G PARKINS & PARTNERS LTD,4107150,24/06/2019,87416,450,0,Attendance at site to assess structure,152200,Consultancy Technical & Feasibility
South Lakeland District Council,http://opendatacommunities.org/id/district-council/south-lakeland,01/07/2019,Business Support Community Services,Cultural Environmental Regulatory & Planning Services,http://opendatacommunities.org/def/concept/finance/sercop/objective/104,RIBBLESDALE AUTO ELECTRICS 1992 LTD,2732686,24/06/2019,87429,76.08,0,Parts,381500,Vehicle Mgt Parts
South Lakeland District Council,http://opendatacommunities.org/id/district-council/south-lakeland,01/07/2019,Lake Wardens,Cultural Environmental Regulatory & Planning Services,http://opendatacommunities.org/def/concept/finance/sercop/objective/104,RICKERBY LTD,4985069,10/06/2019,86879,548.69,0,COUPLING,381000,Vehicle Mgt Commercial
South Lakeland District Council,http://opendatacommunities.org/id/district-council/south-lakeland,01/07/2019,Customer Services,Cultural Environmental Regulatory & Planning Services,http://opendatacommunities.org/def/concept/finance/sercop/objective/104,RIGHT 2 WORK,,19/06/2019,87297,3970,0,FOR REMOVAL OF BULKY WASTE,321010,Social Care Adult Advice & Counselling
South Lakeland District Council,http://opendatacommunities.org/id/district-council/south-lakeland,01/07/2019,Democratic and Member Services,Central Services,http://opendatacommunities.org/def/concept/finance/sercop/objective/102,RIVERBANK HOSPITALITY CATERING,,05/06/2019,86898,66,0,30 May 2019 -Planning Workshop Buffet,111000,Catering Banquet & Catering
South Lakeland District Council,http://opendatacommunities.org/id/district-council/south-lakeland,01/07/2019,Democratic and Member Services,Central Services,http://opendatacommunities.org/def/concept/finance/sercop/objective/102,RIVERBANK HOSPITALITY CATERING,,24/06/2019,87410,39,0,sandwiches and fruit for Member,111000,Catering Banquet & Catering
South Lakeland District Council,http://opendatacommunities.org/id/district-council/south-lakeland,01/07/2019,Business Support Community Services,Cultural Environmental Regulatory & Planning Services,http://opendatacommunities.org/def/concept/finance/sercop/objective/104,Riverside Truck Rental Ltd,3190863,17/06/2019,87171,366,0,Repair DE67 OUJ,381210,Vehicle Mangement- Hire
South Lakeland District Council,http://opendatacommunities.org/id/district-council/south-lakeland,01/07/2019,Business Support Community Services,Cultural Environmental Regulatory & Planning Services,http://opendatacommunities.org/def/concept/finance/sercop/objective/104,ROBEX INDUSTRIAL PRODUCTS LTD,1562656,19/06/2019,87257,256,0,Tyre repair,102100,Building Paint & Finishing
South Lakeland District Council,http://opendatacommunities.org/id/district-council/south-lakeland,01/07/2019,Business Support Community Services,Cultural Environmental Regulatory & Planning Services,http://opendatacommunities.org/def/concept/finance/sercop/objective/104,Ronnie Haddow Chimney Services,,17/06/2019,86923,100,0,Test and inspection of wood burning,131310,Cleaning & Janitorial Cleaning Service
South Lakeland District Council,http://opendatacommunities.org/id/district-council/south-lakeland,01/07/2019,Business Support Community Services,Cultural Environmental Regulatory & Planning Services,http://opendatacommunities.org/def/concept/finance/sercop/objective/104,Ronnie Haddow Chimney Services,,24/06/2019,87336,100,0,Test and inspection of wood burning,131310,Cleaning & Janitorial Cleaning Service
South Lakeland District Council,http://opendatacommunities.org/id/district-council/south-lakeland,01/07/2019,Printing Section,Central Services,http://opendatacommunities.org/def/concept/finance/sercop/objective/102,ROSEFOX PAPER LIMITED,1655083,05/06/2019,86881,280.23,0,A3 Paper one 100gsm,341000,Stationery Paper
South Lakeland District Council,http://opendatacommunities.org/id/district-council/south-lakeland,01/07/2019,Printing Section,Central Services,http://opendatacommunities.org/def/concept/finance/sercop/objective/102,ROSEFOX PAPER LIMITED,1655083,17/06/2019,87193,450,0,paper one 75gsm,341000,Stationery Paper
South Lakeland District Council,http://opendatacommunities.org/id/district-council/south-lakeland,01/07/2019,Revenues and Benefits,Central Services,http://opendatacommunities.org/def/concept/finance/sercop/objective/102,ROYAL MAIL GROUP PLC,,03/06/2019,86864,34.45,0,2019-20 Postal Charges a/c 0055114000,301200,Mail Services� Postage
South Lakeland District Council,http://opendatacommunities.org/id/district-council/south-lakeland,01/07/2019,Revenues and Benefits,SLDC as Agent,,ROYAL MAIL GROUP PLC,,10/06/2019,86936,99,0,Response services account 00917139001,301200,Mail Services� Postage
South Lakeland District Council,http://opendatacommunities.org/id/district-council/south-lakeland,01/07/2019,Electoral Services,Central Services,http://opendatacommunities.org/def/concept/finance/sercop/objective/102,ROYAL MAIL GROUP PLC,,12/06/2019,87152,4331.94,0,Response plus service weeks ending,301200,Mail Services� Postage
South Lakeland District Council,http://opendatacommunities.org/id/district-council/south-lakeland,01/07/2019,Electoral Services,Central Services,http://opendatacommunities.org/def/concept/finance/sercop/objective/102,ROYAL MAIL GROUP PLC,,12/06/2019,87153,2099.02,0,Response plus w/e 25 May 2019,301200,Mail Services� Postage
South Lakeland District Council,http://opendatacommunities.org/id/district-council/south-lakeland,01/07/2019,Revenues and Benefits,SLDC as Agent,,ROYAL MAIL GROUP PLC,,12/06/2019,87155,1409.48,0,2019 - 20 Postal Charges a/c 0198123013,301200,Mail Services� Postage
South Lakeland District Council,http://opendatacommunities.org/id/district-council/south-lakeland,01/07/2019,Revenues and Benefits,SLDC as Agent,,ROYAL MAIL GROUP PLC,,19/06/2019,87305,1468.49,0,2019 - 20 Postal Charges a/c 0198123013,301200,Mail Services� Postage
South Lakeland District Council,http://opendatacommunities.org/id/district-council/south-lakeland,01/07/2019,Revenues and Benefits,Central Services,http://opendatacommunities.org/def/concept/finance/sercop/objective/102,ROYAL MAIL GROUP PLC,,19/06/2019,87321,33.39,0,2019-20 Postal Charges a/c 0055114000,301200,Mail Services� Postage
South Lakeland District Council,http://opendatacommunities.org/id/district-council/south-lakeland,01/07/2019,Revenues and Benefits,SLDC as Agent,,ROYAL MAIL GROUP PLC,,24/06/2019,87427,1211.12,0,2019 - 20 Postal Charges a/c 0198123013,301200,Mail Services� Postage
South Lakeland District Council,http://opendatacommunities.org/id/district-council/south-lakeland,01/07/2019,Development Strategy,Central Services,http://opendatacommunities.org/def/concept/finance/sercop/objective/102,ROYAL TOWN PLANNING INSTITUTE,,17/06/2019,86899,210,0,Ticket for RTPI member to attend,908999,Public Bodies Not Elsewhere Classified
South Lakeland District Council,http://opendatacommunities.org/id/district-council/south-lakeland,01/07/2019,Policy & Partnerships,Central Services,http://opendatacommunities.org/def/concept/finance/sercop/objective/102,Rural Services Network,6960646,24/06/2019,87277,170,0,conference fee for Rural,291000,Arts & Leisure Services Events
South Lakeland District Council,http://opendatacommunities.org/id/district-council/south-lakeland,01/07/2019,Business Support Community Services,Cultural Environmental Regulatory & Planning Services,http://opendatacommunities.org/def/concept/finance/sercop/objective/104,S J Bargh,532272,10/06/2019,87007,260.6,0,MOTs 2019/20 & vehicle cleaning,381400,Vehicle Mgt Maintenance
South Lakeland District Council,http://opendatacommunities.org/id/district-council/south-lakeland,01/07/2019,Business Support Community Services,Cultural Environmental Regulatory & Planning Services,http://opendatacommunities.org/def/concept/finance/sercop/objective/104,S J Bargh,532272,10/06/2019,87009,248.6,0,MOTs 2019/20 & vehicle cleaning,381400,Vehicle Mgt Maintenance
South Lakeland District Council,http://opendatacommunities.org/id/district-council/south-lakeland,01/07/2019,Business Support Community Services,Cultural Environmental Regulatory & Planning Services,http://opendatacommunities.org/def/concept/finance/sercop/objective/104,S J Bargh,532272,17/06/2019,87161,84,0,MOTs 2019/20 & vehicle cleaning,381400,Vehicle Mgt Maintenance
South Lakeland District Council,http://opendatacommunities.org/id/district-council/south-lakeland,01/07/2019,Business Support Community Services,Cultural Environmental Regulatory & Planning Services,http://opendatacommunities.org/def/concept/finance/sercop/objective/104,S J Bargh,532272,17/06/2019,87201,141,0,MOTs 2019/20 & vehicle cleaning,381400,Vehicle Mgt Maintenance
South Lakeland District Council,http://opendatacommunities.org/id/district-council/south-lakeland,01/07/2019,Business Support Community Services,Cultural Environmental Regulatory & Planning Services,http://opendatacommunities.org/def/concept/finance/sercop/objective/104,S J Bargh,532272,17/06/2019,87220,248.6,0,MOTs 2019/20 & vehicle cleaning,381400,Vehicle Mgt Maintenance
South Lakeland District Council,http://opendatacommunities.org/id/district-council/south-lakeland,01/07/2019,Business Support Community Services,Cultural Environmental Regulatory & Planning Services,http://opendatacommunities.org/def/concept/finance/sercop/objective/104,S J Bargh,532272,24/06/2019,87357,248.6,0,MOTs 2019/20 & vehicle cleaning,381400,Vehicle Mgt Maintenance
South Lakeland District Council,http://opendatacommunities.org/id/district-council/south-lakeland,01/07/2019,Development Implementation,Cultural Environmental Regulatory & Planning Services,http://opendatacommunities.org/def/concept/finance/sercop/objective/104,Sedbergh CIC,,05/06/2019,86868,322.4,0,Road Closure Advert,151000,Consultancy Business
South Lakeland District Council,http://opendatacommunities.org/id/district-council/south-lakeland,01/07/2019,Business Support Community Services,Cultural Environmental Regulatory & Planning Services,http://opendatacommunities.org/def/concept/finance/sercop/objective/104,SHB Hire Ltd,,05/06/2019,86878,643.25,0,Hire van,381210,Vehicle Mangement- Hire
South Lakeland District Council,http://opendatacommunities.org/id/district-council/south-lakeland,01/07/2019,Human Resources,Central Services,http://opendatacommunities.org/def/concept/finance/sercop/objective/102,Skillset Limited,,24/06/2019,86939,750,0,Year 1 costs (software and support) -,261520,Human Resources Training
South Lakeland District Council,http://opendatacommunities.org/id/district-council/south-lakeland,01/07/2019,Electoral Services,Central Services,http://opendatacommunities.org/def/concept/finance/sercop/objective/102,SOUNDSMITH LIMITED,5366630,10/06/2019,86959,685,0,AV equipment hire and set up for the,171111,Education Audio Visual
South Lakeland District Council,http://opendatacommunities.org/id/district-council/south-lakeland,01/07/2019,Development Implementation,Culture and Related Serv,http://opendatacommunities.org/def/concept/finance/sercop/objective/104,South Lakeland Hydrotherapy Trust Ltd,,24/06/2019,87405,15000,0,LIP Grant for South Lakes Hydrotherapy,201700,Financial Services Grants
South Lakeland District Council,http://opendatacommunities.org/id/district-council/south-lakeland,01/07/2019,Electoral Services,Central Services,http://opendatacommunities.org/def/concept/finance/sercop/objective/102,SOUTH LAKES HOUSING,IP031419,26/06/2019,87292,204,0,Room hire and cleaning charge for,191700,Facilities Property Management
South Lakeland District Council,http://opendatacommunities.org/id/district-council/south-lakeland,01/07/2019,Business Support Community Services,Housing Services,http://opendatacommunities.org/def/concept/finance/sercop/objective/108,SOUTH LAKES HOUSING RENT A/C,,05/06/2019,86871,315.28,0,Rent in advance,191700,Facilities Property Management
South Lakeland District Council,http://opendatacommunities.org/id/district-council/south-lakeland,01/07/2019,Business Support Community Services,Housing Services,http://opendatacommunities.org/def/concept/finance/sercop/objective/108,SOUTH LAKES HOUSING RENT A/C,,05/06/2019,86872,70.6,0,Rent in advance ,191700,Facilities Property Management
South Lakeland District Council,http://opendatacommunities.org/id/district-council/south-lakeland,01/07/2019,Business Support Community Services,Housing Services,http://opendatacommunities.org/def/concept/finance/sercop/objective/108,SOUTH LAKES HOUSING RENT A/C,,26/06/2019,87500,86.65,0,Rent in adavance,191700,Facilities Property Management
South Lakeland District Council,http://opendatacommunities.org/id/district-council/south-lakeland,01/07/2019,Leisure and Wellbeing,Cultural Environmental Regulatory & Planning Services,http://opendatacommunities.org/def/concept/finance/sercop/objective/104,SOUTH LAKES TREE SURGEONS & LANDSCAPES,5342745,17/06/2019,87122,490,0,Kendal Castle & Parkside Cemetery north,241210,Horticultural Tree Trimming
South Lakeland District Council,http://opendatacommunities.org/id/district-council/south-lakeland,01/07/2019,Leisure and Wellbeing,Cultural Environmental Regulatory & Planning Services,http://opendatacommunities.org/def/concept/finance/sercop/objective/104,SOUTH LAKES TREE SURGEONS & LANDSCAPES,5342745,24/06/2019,87351,360,0,Removal of storm damaged tree at,241210,Horticultural Tree Trimming
South Lakeland District Council,http://opendatacommunities.org/id/district-council/south-lakeland,01/07/2019,Leisure and Wellbeing,Cultural Environmental Regulatory & Planning Services,http://opendatacommunities.org/def/concept/finance/sercop/objective/104,SOUTH LAKES TREE SURGEONS & LANDSCAPES,5342745,26/06/2019,87496,1290,0,"Greenwood, Kendal",241210,Horticultural Tree Trimming
South Lakeland District Council,http://opendatacommunities.org/id/district-council/south-lakeland,01/07/2019,Development Implementation,Cultural Environmental Regulatory & Planning Services,http://opendatacommunities.org/def/concept/finance/sercop/objective/104,Springboard Research Ltd,,10/06/2019,86928,570,0,Footfall/Benchmarking for Kendal Town,191500,Facilities Market Research
South Lakeland District Council,http://opendatacommunities.org/id/district-council/south-lakeland,01/07/2019,Development Implementation,SLDC as Agent,,Springboard Research Ltd,,10/06/2019,86928,3000,0,Footfall/Benchmarking for Kendal Town,191500,Facilities Market Research
South Lakeland District Council,http://opendatacommunities.org/id/district-council/south-lakeland,01/07/2019,Democratic and Member Services,Central Services,http://opendatacommunities.org/def/concept/finance/sercop/objective/102,STEVEN BARBER PHOTOGRAPHY LTD,6058535,24/06/2019,87377,175,0,Chairman's portrait ,191100,Facilities Design & Photography
South Lakeland District Council,http://opendatacommunities.org/id/district-council/south-lakeland,01/07/2019,Revenues and Benefits,Central Services,http://opendatacommunities.org/def/concept/finance/sercop/objective/102,TAMESIDE METROPOLITAN BOROUGH,,24/06/2019,87370,410.51,0,2018-19 NAFN credit and other referrals,202100,Financial Services Subscriptions
South Lakeland District Council,http://opendatacommunities.org/id/district-council/south-lakeland,01/07/2019,Business Support Community Services,Cultural Environmental Regulatory & Planning Services,http://opendatacommunities.org/def/concept/finance/sercop/objective/104,TAYLOR ENGINEERING & FABRICATIONS LTD,4989359,17/06/2019,87243,74.95,0,Parts,391200,Construction Engineering
South Lakeland District Council,http://opendatacommunities.org/id/district-council/south-lakeland,01/07/2019,Business Support Community Services,Cultural Environmental Regulatory & Planning Services,http://opendatacommunities.org/def/concept/finance/sercop/objective/104,TECHNIJET LTD,2776601,17/06/2019,87183,134.15,0,Service & repair pressure washers,139999,Cleaning & Janitorial Not Elsewhere Clas
South Lakeland District Council,http://opendatacommunities.org/id/district-council/south-lakeland,01/07/2019,Business Support Community Services,Cultural Environmental Regulatory & Planning Services,http://opendatacommunities.org/def/concept/finance/sercop/objective/104,TECHNIJET LTD,2776601,17/06/2019,87218,515.9,0,Service & repair pressure washers,139999,Cleaning & Janitorial Not Elsewhere Clas
South Lakeland District Council,http://opendatacommunities.org/id/district-council/south-lakeland,01/07/2019,Business Support Community Services,Cultural Environmental Regulatory & Planning Services,http://opendatacommunities.org/def/concept/finance/sercop/objective/104,Terberg Matec (UK) Ltd,,19/06/2019,87207,1,0,Parts,381500,Vehicle Mgt Parts
South Lakeland District Council,http://opendatacommunities.org/id/district-council/south-lakeland,01/07/2019,Business Support Community Services,Cultural Environmental Regulatory & Planning Services,http://opendatacommunities.org/def/concept/finance/sercop/objective/104,Terberg Matec (UK) Ltd,,19/06/2019,87207,1062.04,0,Parts,381500,Vehicle Mgt Parts
South Lakeland District Council,http://opendatacommunities.org/id/district-council/south-lakeland,01/07/2019,Revenues and Benefits,Central Services,http://opendatacommunities.org/def/concept/finance/sercop/objective/102,The Mailing Room Ltd,8708033,19/06/2019,87304,3465.4,0,Letter Opener & Machine Service Plan,309999,Mail Services� Not Elsewhere Classified
South Lakeland District Council,http://opendatacommunities.org/id/district-council/south-lakeland,01/07/2019,Business Support Community Services,Cultural Environmental Regulatory & Planning Services,http://opendatacommunities.org/def/concept/finance/sercop/objective/104,The Oyster Partnership,5020374,10/06/2019,86919,1136.25,0,Agency staff Planning,261300,HR Recruitment & Assessment
South Lakeland District Council,http://opendatacommunities.org/id/district-council/south-lakeland,01/07/2019,Business Support Community Services,Cultural Environmental Regulatory & Planning Services,http://opendatacommunities.org/def/concept/finance/sercop/objective/104,The Oyster Partnership,5020374,17/06/2019,86945,1200.75,0,Agency staff Planning,261300,HR Recruitment & Assessment
South Lakeland District Council,http://opendatacommunities.org/id/district-council/south-lakeland,01/07/2019,Business Support Community Services,Cultural Environmental Regulatory & Planning Services,http://opendatacommunities.org/def/concept/finance/sercop/objective/104,The Oyster Partnership,5020374,17/06/2019,86946,1215,0,Agency staff Planning,261300,HR Recruitment & Assessment
South Lakeland District Council,http://opendatacommunities.org/id/district-council/south-lakeland,01/07/2019,Business Support Community Services,Cultural Environmental Regulatory & Planning Services,http://opendatacommunities.org/def/concept/finance/sercop/objective/104,The Oyster Partnership,5020374,17/06/2019,86947,2152.5,0,Agency staff Planning,261300,HR Recruitment & Assessment
South Lakeland District Council,http://opendatacommunities.org/id/district-council/south-lakeland,01/07/2019,Business Support Community Services,Cultural Environmental Regulatory & Planning Services,http://opendatacommunities.org/def/concept/finance/sercop/objective/104,The Oyster Partnership,5020374,19/06/2019,87245,2858.1,0,Agency staff Planning,261300,HR Recruitment & Assessment
South Lakeland District Council,http://opendatacommunities.org/id/district-council/south-lakeland,01/07/2019,Business Support Community Services,Cultural Environmental Regulatory & Planning Services,http://opendatacommunities.org/def/concept/finance/sercop/objective/104,The Oyster Partnership,5020374,26/06/2019,87418,1224.5,0,Agency staff Planning,261300,HR Recruitment & Assessment
South Lakeland District Council,http://opendatacommunities.org/id/district-council/south-lakeland,01/07/2019,Business Support Community Services,Cultural Environmental Regulatory & Planning Services,http://opendatacommunities.org/def/concept/finance/sercop/objective/104,The Oyster Partnership,5020374,26/06/2019,87419,2823.1,0,Agency staff Planning,261300,HR Recruitment & Assessment
South Lakeland District Council,http://opendatacommunities.org/id/district-council/south-lakeland,01/07/2019,Lake Wardens,Highways & Transport Services,http://opendatacommunities.org/def/concept/finance/sercop/objective/107,THOMAS GRAHAM & SONS LTD,656879,05/06/2019,86905,11.96,0,50 x 115 x 1.0 (4.1/2in) Cutting Disc,101400,Building General Materials
South Lakeland District Council,http://opendatacommunities.org/id/district-council/south-lakeland,01/07/2019,Lake Wardens,Cultural Environmental Regulatory & Planning Services,http://opendatacommunities.org/def/concept/finance/sercop/objective/104,THOMAS GRAHAM & SONS LTD,656879,05/06/2019,86905,66.94,0,50 x 115 x 1.0 (4.1/2in) Cutting Disc,101400,Building General Materials
South Lakeland District Council,http://opendatacommunities.org/id/district-council/south-lakeland,01/07/2019,Lake Wardens,Cultural Environmental Regulatory & Planning Services,http://opendatacommunities.org/def/concept/finance/sercop/objective/104,THOMAS GRAHAM & SONS LTD,656879,05/06/2019,86905,5.13,0,50 x 115 x 1.0 (4.1/2in) Cutting Disc,101400,Building General Materials
South Lakeland District Council,http://opendatacommunities.org/id/district-council/south-lakeland,01/07/2019,Development Implementation,Central Services,http://opendatacommunities.org/def/concept/finance/sercop/objective/102,THOMAS GRAHAM & SONS LTD,656879,17/06/2019,86906,218.72,0,2 x Commercial Henry Hoovers (NRV200-C2,101400,Building General Materials
South Lakeland District Council,http://opendatacommunities.org/id/district-council/south-lakeland,01/07/2019,Development Implementation,Cultural Environmental Regulatory & Planning Services,http://opendatacommunities.org/def/concept/finance/sercop/objective/104,THOMAS GRAHAM & SONS LTD,656879,17/06/2019,86907,192.16,0,CFold Paperhand Towels Blue 1py - 4 x,101400,Building General Materials
South Lakeland District Council,http://opendatacommunities.org/id/district-council/south-lakeland,01/07/2019,Lake Wardens,Cultural Environmental Regulatory & Planning Services,http://opendatacommunities.org/def/concept/finance/sercop/objective/104,THOMAS GRAHAM & SONS LTD,656879,05/06/2019,86908,190.5,0,6 x Packs of JP32 Coreless Toilet Rolls,101400,Building General Materials
South Lakeland District Council,http://opendatacommunities.org/id/district-council/south-lakeland,01/07/2019,Development Implementation,Central Services,http://opendatacommunities.org/def/concept/finance/sercop/objective/102,THOMAS GRAHAM & SONS LTD,656879,17/06/2019,86909,342.28,0,Lemon Floor Gel - 2 boxes of 2,101400,Building General Materials
South Lakeland District Council,http://opendatacommunities.org/id/district-council/south-lakeland,01/07/2019,Development Implementation,Central Services,http://opendatacommunities.org/def/concept/finance/sercop/objective/102,THOMAS GRAHAM & SONS LTD,656879,10/06/2019,86950,109.36,0,Henry Hoover,101400,Building General Materials
South Lakeland District Council,http://opendatacommunities.org/id/district-council/south-lakeland,01/07/2019,Electoral Services,Central Services,http://opendatacommunities.org/def/concept/finance/sercop/objective/102,THOMSON REUTERS (PROFESSIONAL) UK LTD,1679046,12/06/2019,87151,243,0,Schofields Election Law LL PR 46,202100,Financial Services Subscriptions
South Lakeland District Council,http://opendatacommunities.org/id/district-council/south-lakeland,01/07/2019,Development Implementation,Culture and Related Serv,http://opendatacommunities.org/def/concept/finance/sercop/objective/104,Toman Paving Ltd,8348521,05/06/2019,86912,85444.47,0,Braithwaite Fold Caravan Park,391300,Construction Open Spaces
South Lakeland District Council,http://opendatacommunities.org/id/district-council/south-lakeland,01/07/2019,Business Support Community Services,Cultural Environmental Regulatory & Planning Services,http://opendatacommunities.org/def/concept/finance/sercop/objective/104,TPS Preston,,10/06/2019,86991,11.6,0,Parts,381400,Vehicle Mgt Maintenance
South Lakeland District Council,http://opendatacommunities.org/id/district-council/south-lakeland,01/07/2019,Business Support Community Services,Cultural Environmental Regulatory & Planning Services,http://opendatacommunities.org/def/concept/finance/sercop/objective/104,TPS Preston,,17/06/2019,87206,68.13,0,Parts,381400,Vehicle Mgt Maintenance
South Lakeland District Council,http://opendatacommunities.org/id/district-council/south-lakeland,01/07/2019,Business Support Community Services,Cultural Environmental Regulatory & Planning Services,http://opendatacommunities.org/def/concept/finance/sercop/objective/104,TPS Preston,,17/06/2019,87224,86.31,0,Parts,381400,Vehicle Mgt Maintenance
South Lakeland District Council,http://opendatacommunities.org/id/district-council/south-lakeland,01/07/2019,Business Support Community Services,Cultural Environmental Regulatory & Planning Services,http://opendatacommunities.org/def/concept/finance/sercop/objective/104,TPS Preston,,19/06/2019,87314,81.17,0,Parts,381400,Vehicle Mgt Maintenance
South Lakeland District Council,http://opendatacommunities.org/id/district-council/south-lakeland,01/07/2019,Business Support Community Services,Cultural Environmental Regulatory & Planning Services,http://opendatacommunities.org/def/concept/finance/sercop/objective/104,TPS Preston,,24/06/2019,87315,17.7,0,Parts,381400,Vehicle Mgt Maintenance
South Lakeland District Council,http://opendatacommunities.org/id/district-council/south-lakeland,01/07/2019,Business Support Community Services,Cultural Environmental Regulatory & Planning Services,http://opendatacommunities.org/def/concept/finance/sercop/objective/104,TPS Preston,,19/06/2019,87318,36.64,0,Parts,381400,Vehicle Mgt Maintenance
South Lakeland District Council,http://opendatacommunities.org/id/district-council/south-lakeland,01/07/2019,Business Support Community Services,Cultural Environmental Regulatory & Planning Services,http://opendatacommunities.org/def/concept/finance/sercop/objective/104,TPS Preston,,24/06/2019,87384,144.62,0,Parts,381400,Vehicle Mgt Maintenance
South Lakeland District Council,http://opendatacommunities.org/id/district-council/south-lakeland,01/07/2019,Business Support Community Services,Cultural Environmental Regulatory & Planning Services,http://opendatacommunities.org/def/concept/finance/sercop/objective/104,TTS (GARSTANG) LTD,4990573,10/06/2019,86999,246.31,0,Repair SL020,381500,Vehicle Mgt Parts
South Lakeland District Council,http://opendatacommunities.org/id/district-council/south-lakeland,01/07/2019,Revenues and Benefits,Non-Service Payments,,Ulverston BID Company Ltd,9761005,24/06/2019,87415,81285.29,0,BID Levy - Collection figures for April,201700,Financial Services Grants
South Lakeland District Council,http://opendatacommunities.org/id/district-council/south-lakeland,01/07/2019,Development Implementation,Central Services,http://opendatacommunities.org/def/concept/finance/sercop/objective/102,Ulverston Properties Limited,,05/06/2019,86853,281.67,0,Ulverston Business Centre,190000,Facilities & Management Services
South Lakeland District Council,http://opendatacommunities.org/id/district-council/south-lakeland,01/07/2019,Business Support Community Services,Cultural Environmental Regulatory & Planning Services,http://opendatacommunities.org/def/concept/finance/sercop/objective/104,UNITED UTILITIES WATER PLC,2366678,05/06/2019,86867,6558.81,0,Private Water Analysis,371300,Utilities Water
South Lakeland District Council,http://opendatacommunities.org/id/district-council/south-lakeland,01/07/2019,Democratic Services,Central Services,http://opendatacommunities.org/def/concept/finance/sercop/objective/102,VENN GROUP RECRUITMENT SOLUTIONS,,26/06/2019,87441,2100,0,LF Agency,261400,HR Temporary & Agency Staff
South Lakeland District Council,http://opendatacommunities.org/id/district-council/south-lakeland,01/07/2019,Democratic Services,Central Services,http://opendatacommunities.org/def/concept/finance/sercop/objective/102,VENN GROUP RECRUITMENT SOLUTIONS,,26/06/2019,87442,2100,0,LF Agency,261400,HR Temporary & Agency Staff
South Lakeland District Council,http://opendatacommunities.org/id/district-council/south-lakeland,01/07/2019,Business Support Community Services,Cultural Environmental Regulatory & Planning Services,http://opendatacommunities.org/def/concept/finance/sercop/objective/104,Verizon Connect UK Ltd,5265904,10/06/2019,87016,13440,0,Annual fee for 70 vehicles from 01/06/19,361000,Public Transport Fleet Management
South Lakeland District Council,http://opendatacommunities.org/id/district-council/south-lakeland,01/07/2019,Business Support Community Services,Cultural Environmental Regulatory & Planning Services,http://opendatacommunities.org/def/concept/finance/sercop/objective/104,Verizon Connect UK Ltd,5265904,10/06/2019,87018,32,0,Annual fee for 70 vehicles from 01/06/19,361000,Public Transport Fleet Management
South Lakeland District Council,http://opendatacommunities.org/id/district-council/south-lakeland,01/07/2019,Business Support Community Services,Cultural Environmental Regulatory & Planning Services,http://opendatacommunities.org/def/concept/finance/sercop/objective/104,Vivid Resourcing,,24/06/2019,86607,1755,0,SUPPLY OF CONTRACT WORKER FOR PLANNING,150000,Consultancy
South Lakeland District Council,http://opendatacommunities.org/id/district-council/south-lakeland,01/07/2019,Business Support Community Services,Cultural Environmental Regulatory & Planning Services,http://opendatacommunities.org/def/concept/finance/sercop/objective/104,Vivid Resourcing,,10/06/2019,86793,1676.25,0,SUPPLY OF CONTRACT WORKER FOR PLANNING,150000,Consultancy
South Lakeland District Council,http://opendatacommunities.org/id/district-council/south-lakeland,01/07/2019,Business Support Community Services,Housing Services,http://opendatacommunities.org/def/concept/finance/sercop/objective/108,Vivid Resourcing,,10/06/2019,86974,413,0,Payment for FOB,150000,Consultancy
South Lakeland District Council,http://opendatacommunities.org/id/district-council/south-lakeland,01/07/2019,Business Support Community Services,Cultural Environmental Regulatory & Planning Services,http://opendatacommunities.org/def/concept/finance/sercop/objective/104,Vivid Resourcing,,12/06/2019,86975,1665,0,SUPPLY OF CONTRACT WORKER FOR PLANNING,150000,Consultancy
South Lakeland District Council,http://opendatacommunities.org/id/district-council/south-lakeland,01/07/2019,Business Support Community Services,Cultural Environmental Regulatory & Planning Services,http://opendatacommunities.org/def/concept/finance/sercop/objective/104,Vivid Resourcing,,26/06/2019,87329,1665,0,SUPPLY OF CONTRACT WORKER FOR PLANNING,150000,Consultancy
South Lakeland District Council,http://opendatacommunities.org/id/district-council/south-lakeland,01/07/2019,Business Support Community Services,Housing Services,http://opendatacommunities.org/def/concept/finance/sercop/objective/108,Vivid Resourcing,,19/06/2019,87330,1148,0,Payment for FOB,150000,Consultancy
South Lakeland District Council,http://opendatacommunities.org/id/district-council/south-lakeland,01/07/2019,Business Support Community Services,Cultural Environmental Regulatory & Planning Services,http://opendatacommunities.org/def/concept/finance/sercop/objective/104,Vivid Resourcing,,24/06/2019,87380,1665,0,SUPPLY OF CONTRACT WORKER FOR PLANNING,150000,Consultancy
South Lakeland District Council,http://opendatacommunities.org/id/district-council/south-lakeland,01/07/2019,Business Support Community Services,Housing Services,http://opendatacommunities.org/def/concept/finance/sercop/objective/108,Vivid Resourcing,,24/06/2019,87381,875,0,Payment for FOB,150000,Consultancy
South Lakeland District Council,http://opendatacommunities.org/id/district-council/south-lakeland,01/07/2019,Business Support Community Services,Cultural Environmental Regulatory & Planning Services,http://opendatacommunities.org/def/concept/finance/sercop/objective/104,VOLVO GROUP UK LTD,2190944,10/06/2019,86986,55.05,0,parts,381000,Vehicle Mgt Commercial
South Lakeland District Council,http://opendatacommunities.org/id/district-council/south-lakeland,01/07/2019,Social Enterprise Admin,Highways & Transport Services,http://opendatacommunities.org/def/concept/finance/sercop/objective/107,We Love Logos Ltd,,10/06/2019,86981,225.4,0,1 Pair Trousers Regatta Lightweight,141100,Clothing Protective
South Lakeland District Council,http://opendatacommunities.org/id/district-council/south-lakeland,01/07/2019,Social Enterprise Admin,Highways & Transport Services,http://opendatacommunities.org/def/concept/finance/sercop/objective/107,We Love Logos Ltd,,10/06/2019,86981,50.75,0,1 Pair Trousers Regatta Lightweight,141100,Clothing Protective
South Lakeland District Council,http://opendatacommunities.org/id/district-council/south-lakeland,01/07/2019,Development Implementation,Cultural Environmental Regulatory & Planning Services,http://opendatacommunities.org/def/concept/finance/sercop/objective/104,WiFi Spark Ltd,,10/06/2019,86924,402.18,0,Kendal Town Centre Wifi Maintenance,271800,ICT Telecommunications Mobile
South Lakeland District Council,http://opendatacommunities.org/id/district-council/south-lakeland,01/07/2019,Development Implementation,Cultural Environmental Regulatory & Planning Services,http://opendatacommunities.org/def/concept/finance/sercop/objective/104,Windermere Works Ltd,,10/06/2019,86929,37.5,0,Meeting Room Hire 15th Feb 2019 for,190000,Facilities & Management Services
South Lakeland District Council,http://opendatacommunities.org/id/district-council/south-lakeland,01/07/2019,Social Enterprise Admin,Central Services,http://opendatacommunities.org/def/concept/finance/sercop/objective/102,WOOF'S OF SEDBERGH,,24/06/2019,87412,180,0,MINI BUS SITE VISITS FOR MEMBERS RE,361300,Public Transport Passenger Transport
South Lakeland District Council,http://opendatacommunities.org/id/district-council/south-lakeland,01/07/2019,Social Enterprise Admin,Central Services,http://opendatacommunities.org/def/concept/finance/sercop/objective/102,WOOF'S OF SEDBERGH,,24/06/2019,87413,150,0,MINI BUS SITE VISITS FOR MEMBERS RE,361300,Public Transport Passenger Transport
